{"text_format":"1","workbook":"xlsx","n_sheets":5,"sheets":["Contents","Cover","1. F-Factor summary","2. Individual fire start info","3. Systems and Audit"],"not_rendered":{"charts":0,"images":2,"macros":1,"external_links":2,"defined_names":97,"comments":0,"pivot_tables":0},"unopened":[],"bounds":{"document_bytes":16777216,"sheet_cells":100000,"rows_first":2000,"rows_last":500,"rows_between":2000,"halvings":0,"cell_chars":16384,"cell_head_chars":4096},"cells_cut":0,"cells_raw":0,"read":"whole","date_system":"1900"}

{"sheet":"Contents","index":0,"n_rows":19,"n_cols":6,"rows_kept":19,"cut":false,"hidden":false,"merged":[[8,2,9,3],[2,1,2,10],[4,1,4,10]]}
[" "]
[]
[null,"Electricity Distribution Network Service Provider\nF-factor Reporting Template"]
[]
[null,"Table of contents"]
[]
[]
[null,null,"Cover sheet",null,null,"2. Fire start report"]
[]
[]
[]
[null,null,"1. F-factor summary",null,null,"3. Systems and Audit"]
[]
[]
[]
[]
[]
[]
[null,null,{"$f":"\"NOTE: This spreadsheet includes IRU targets up to and including FY\"&'1. F-Factor summary'!J6","v":"NOTE: This spreadsheet includes IRU targets up to and including FY2020/21"}]

{"sheet":"Cover","index":1,"n_rows":49,"n_cols":7,"rows_kept":49,"cut":false,"hidden":false,"merged":[[10,1,11,8],[13,1,13,8],[48,2,48,6],[42,2,42,3],[42,4,42,7],[46,2,46,6],[47,2,47,6],[38,2,38,3],[38,4,38,7],[41,2,41,3],[41,4,41,7],[37,2,37,3],[37,4,37,7],[32,3,32,8],[30,3,30,8],[15,1,15,8],[26,3,26,8],[28,3,28,8],[26,1,26,2],[31,3,31,5],[14,1,14,8],[16,1,16,8],[17,1,17,8],[21,1,21,8],[19,1,19,8]]}
[]
[]
[]
[]
[]
[]
[]
[null,"Distribution Network Service Provider"]
[null,"Fire start report"]
[]
[null,"This template is to be used by a DNSP to provide a fire start report to the AER in accordance with section 5 of the F-factor Order in Council.  "]
[]
[]
[null,"Colour coding of input sheets:"]
[null,"Dark blue = AER headings"]
[null,"Grey = AER instructions"]
[null,"Yellow = Input cells"]
[null,"Light orange = Automatically-generated cells"]
[]
[null,"Leave coloured cells blank if no information exists - PLEASE DO NOT ENTER TEXT unless specifically requested to do so."]
[null,"The cells and structure of the spreadsheet is locked to prevent inadvertent interference with the automated settings."]
[null,"All dollar amounts are to be unrounded, and in nominal terms."]
[]
[]
[]
[]
[null,"DNSP:",null,"AusNet Services"]
[]
[null,"DNSP - trading name:"]
[]
[null,"DNSP - Australian business number: ",null,"91 064 651 118"]
[]
[null,"Reporting year:",null,"2020/21"]
[]
[]
[]
[]
[null,"Business address","Address",null,"Level 31, 2 Southbank Boulevard"]
[null,null,"Suburb",null,"Southbank"]
[null,null,null,"State","Victoria","Postcode",3006]
[]
[null,"Postal address","Address",null,"Locked Bag 14051 MCMC"]
[null,null,"Suburb",null,"Melbourne"]
[null,null,null,"State","Victoria","Postcode",8001]
[]
[]
[null,"Contact name/s","Hawaii Ho"]
[null,"Contact phone/s","03 9695 6350"]
[null,"Contact email address/s","Hawaii.Ho@ausnetservices.com.au"]

{"sheet":"1. F-Factor summary","index":2,"n_rows":14,"n_cols":15,"rows_kept":14,"cut":false,"hidden":false,"merged":[[5,1,5,2],[3,6,3,8],[4,6,4,8],[5,6,5,8],[11,2,11,3],[12,2,12,3],[13,2,13,3],[6,2,6,3],[7,2,7,3],[8,2,8,3],[9,2,9,3],[10,2,10,3]]}
[null,{"$f":"IF(Cover!D27=\"\",\"[DNSP Name]\", Cover!D27)","v":"AusNet Services"},"IRU target:",{"$f":"IF(SUM(K7:O7)=0,\"\",SUM(K7:O7))","v":177.5},null,null,null,null,null,null,"AusNet Services","CitiPower","Jemena","Powercor","United Energy"]
[null,"F-factor data reporting","IRU amount:",{"$f":"IF(SUM('2. Individual fire start info'!S38:S1957)=0,\"\",SUM('2. Individual fire start info'!S38:S1957))","v":97.920000000000016},null,null,null,null,null,"2016/17",247.7,3.4,9.6999999999999993,468,22.3]
[null,{"$f":"IF(Cover!D33=\"\",\"[Year]\",Cover!D33)","v":"2020/21"},"Revenue adjustment:",{"$f":"IF(OR(D1=\"\",D2=\"\"),\"\",15000*(D1-D2))","v":1193699.9999999998},null,null,null,null,null,"2017/18",247.7,3.4,9.6999999999999993,468,22.3]
[null,null,null,null,null,null,null,null,null,"2018/19",247.7,3.4,9.6999999999999993,468,22.3]
[null,"Table 2: Summary of total fire starts by F factor Order definition",null,null,null,null,null,null,null,"2019/20",221.1,3.4,9.6999999999999993,412.8,22.3]
[null,"This is a summary of data in worksheet \"2. Fire Start Report\"",null,null,null,null,null,null,null,"2020/21",177.5,1.3,4.2,277.60000000000002,18.7]
[null,"Kind of Fire Start by definition of fire start under clause 5 of F-factor Order","Total fires by cause",null,null,null,null,null,null,null,{"$f":"IF(OR($B3=\"[Year]\",$B1=\"[DNSP Name]\",$B1<>K1),\"\",LOOKUP($B3,$J2:$J6,K2:K6))","v":177.5},{"$f":"IF(OR($B3=\"[Year]\",$B1=\"[DNSP Name]\",$B1<>L1),\"\",LOOKUP($B3,$J2:$J6,L2:L6))","v":""},{"$f":"IF(OR($B3=\"[Year]\",$B1=\"[DNSP Name]\",$B1<>M1),\"\",LOOKUP($B3,$J2:$J6,M2:M6))","v":""},{"$f":"IF(OR($B3=\"[Year]\",$B1=\"[DNSP Name]\",$B1<>N1),\"\",LOOKUP($B3,$J2:$J6,N2:N6))","v":""},{"$f":"IF(OR($B3=\"[Year]\",$B1=\"[DNSP Name]\",$B1<>O1),\"\",LOOKUP($B3,$J2:$J6,O2:O6))","v":""}]
[null,"Started in or originated from a distribution system",{"$f":"COUNTIF('2. Individual fire start info'!$N$38:$N$1957,'1. F-Factor summary'!$B8)","v":4}]
[null,"Started by any tree, or part of a tree, falling upon or coming into contact with a distribution system",{"$f":"COUNTIF('2. Individual fire start info'!$N$38:$N$1957,'1. F-Factor summary'!$B9)","v":28}]
[null,"Started by any person, bird, reptile or other animal coming into contact with a distribution system",{"$f":"COUNTIF('2. Individual fire start info'!$N$38:$N$1957,'1. F-Factor summary'!$B10)","v":11}]
[null,"Started by lightning striking a distribution system or a part of a distribution system ",{"$f":"COUNTIF('2. Individual fire start info'!$N$38:$N$1957,'1. F-Factor summary'!$B11)","v":1}]
[null,"Started by any other thing forming part of or coming into contact with a distribution system",{"$f":"COUNTIF('2. Individual fire start info'!$N$38:$N$1957,'1. F-Factor summary'!$B12)","v":7}]
[null,"Otherwise started by a distribution system",{"$f":"COUNTIF('2. Individual fire start info'!$N$38:$N$1957,'1. F-Factor summary'!$B13)","v":106}]
[null,"Total",{"$f":"SUM(C8:C13)","v":157}]

{"sheet":"2. Individual fire start info","index":3,"n_rows":194,"n_cols":25,"rows_kept":194,"cut":false,"hidden":false,"merged":[[25,1,25,18],[27,1,27,20],[26,1,26,21],[35,19,35,21],[33,1,33,4],[35,2,35,10],[28,1,28,18],[29,1,29,18],[35,11,35,13],[35,14,35,17],[13,1,13,11],[22,1,22,21],[24,1,24,21],[14,1,14,20],[15,1,15,18],[16,1,16,18],[18,1,18,18],[21,1,21,18],[19,1,19,18],[23,1,23,18],[20,1,20,18],[17,1,17,18],[3,22,3,24],[4,22,4,24],[5,22,5,24],[7,1,7,21],[11,1,11,2],[9,1,9,21]]}
[null,{"$f":"IF(Cover!D27=\"\",\"[DNSP Name]\", Cover!D27)","v":"AusNet Services"}]
[null,"F-factor data reporting"]
[null,{"$f":"IF(Cover!D33=\"\",\"[Year]\",Cover!D33)","v":"2020/21"}]
[]
[]
[null,"Instructions:"]
[]
[null,{"$f":"\"Enter into this worksheet fire start data, from any IT system, which have been recorded by \"&IF(Cover!D27=\"\",\"[DNSP Name]\", Cover!D27)&\". Note that fire starts must be in accordance with the definition of a fire start in the Order In Council.\"","v":"Enter into this worksheet fire start data, from any IT system, which have been recorded by AusNet Services. Note that fire starts must be in accordance with the definition of a fire start in the Order In Council."}]
[]
[null,"\"Fire\" should be interpreted using its common meaning and can be defined as a process in which substances combine chemically with oxygen from the air and typically give out bright light, heat and smoke. A fire should be recorded where there is evidence of smoking, charring, scorching, burning or any other evidence that a fire had occurred.  "]
[]
[null,{"$f":"IF(Cover!D27=\"\",\"[DNSP Name] must provide:\", CONCATENATE(Cover!D27,\" must provide:\"))","v":"AusNet Services must provide:"}]
[]
[null,"Table 3 - Individual Fire Starts"]
[null,"   (1) Date - dd/mm/yyyy"]
[null,"   (2) Time - if known, the 24-hour time of the fire start hh:mm"]
[null,"   (3) Latitude and longitude of the fire start as decimal coordinates"]
[null,"   (4) Address of the property on which the incident occurred or closest to the incident"]
[null,"   (5) Asset number for the asset nearest the fire start"]
[null,{"$f":"\"   (6) Feeder ID for the polyphase overhead line or underground cable nearest the fire start in the \"&B1&\" network\"","v":"   (6) Feeder ID for the polyphase overhead line or underground cable nearest the fire start in the AusNet Services network"}]
[null,"   (7) Voltage on the line in which the fire start occurred (note: this may not be the nearest polyphase overhead line)"]
[null,"   (8) Network categorisation - CBD, Urban, Rural Long or Rural Short"]
[null,"   (9) Asset type of primary asset causing fire in accordance with OSIRIS asset categories"]
[null,"   (10) Where the asset involved in the fire is a transformer or an overhead or underground line, provide the phase, or phases, of the line or transformer"]
[null,"   (11) Kind of fire start in accordance with categories specified in Clause 5 of the F-factor Order-In-Council"]
[null,"   (12) Identify the location of the fire start in accordance with the categories specified in Clause 11(b) of the F-factor Order-In-Council"]
[null,"   (13) Provide the BOM fire danger rating applicable at the time of the fire start (data is available on the EM-COP website)"]
[null,{"$f":"\"   (14) \"&IF(Cover!D27=\"\",\"[DNSP Name]\", Cover!D27)&\"'s record number for the incident\"","v":"   (14) AusNet Services's record number for the incident"}]
[null,"   (15) ESV's OSIRIS reference number for the incident"]
[null,"   (16) Free text description of the fault containing relevant comments from field reports "]
[]
[]
[]
[null,"Table 2: Individual Fire Starts"]
[]
[null,"Number","Fire starts",null,null,null,null,null,null,null,null,"Fire Type",null,null,"Risk Factors",null,null,null,"IRU \namount","Additional information"]
[null,null,"Date 1","Time 2","Latitude 3","Longitude 3","Address of incident 4","ID of \nnearest \nasset 5","ID of nearest \npolyphase \nline 6","Voltage of line in which \nfire start \noccurred 7","Network categorisation 8","Type of primary asset \ninvolved in fire start 9","Phase(s) of \nline or \ntransformer 10","Kind of fire start as per Clause 5\nof F-factor Order-In-Council 11","Location \narea 12","Location\nmultiplier","Fire \ndanger \nrating 13","Danger multiplier","Product of multipliers","DNSP record number 14","OSIRIS \n(ESV) reference \nnumber 15","Fault \ndescription 16"]
[{"$f":"COUNTA(C38:O38,Q38,T38:V38)","v":17},1,"2020-07-05","07:30:00",-37.844550984098007,145.46112198510801,"40 Webster Rd, Silvan VIC 3795, Australia",1013452,"LDL13","22kV AC","RURAL SHORT"," - fuse (boric acid)","single phase","Started by any tree, or part of a tree, falling upon or coming into contact with a distribution system","within area delineated on plan LEGL./16-354",{"$f":"IF(O38=\"\",\"\",IF(O38=\"LBRA only\",0.2,IF(O38=\"HBRA only\",1,IF(O38=\"within electric line construction area\",19.8,IF(O38=\"within area delineated on plan LEGL./16-354\",4.6,\"\")))))","v":4.5999999999999996},"NO FORECAST",{"$f":"IF(Q38=\"\",\"\",IF(Q38=\"No forecast\",0.1,IF(Q38=\"Low-moderate\",0.2,IF(Q38=\"High\",0.5,IF(Q38=\"Very high\",1,IF(Q38=\"Severe\",2,IF(Q38=\"Extreme\",3.5,5)))))))","v":0.1},{"$f":"IF(OR(P38=\"\",R38=\"\"),\"\",IF(AND(O38=\"within electric line construction area\",Q38=\"No forecast\"),1,P38*R38))","v":0.45999999999999996},"E0051139","20200707SPN_01","Candled hv ( BA) Fuse.",null,null,"Overhead conductors"]
[17,2,"2020-07-21","10:00:00",-36.419748981276101,146.45872899802998,"596 Markwood-Tarrawingee Rd, Milawa VIC 3678, Australia",5110541,"WN5","22kV AC","RURAL LONG"," - fuse (boric acid)","single phase","Otherwise started by a distribution system","within area delineated on plan LEGL./16-354",4.5999999999999996,"NO FORECAST",0.1,0.45999999999999996,"E0051813","20200727SPN_01","Candled 22kv BA fuse failed to eject",null,null," - overhead conductor (bare; aluminium core steel reinforced)"]
[17,3,"2020-07-21","21:44:00",-37.971275016949399,146.66916400213802,"Corallieu, 268 Stoney Creek Rd, Dawson VIC 3858, Australia",2603168,"TGN31","22kV AC","RURAL LONG"," - fuse (EDO fuse)","single phase","Otherwise started by a distribution system","HBRA only",1,"NO FORECAST",0.1,0.1,"E0051886","20200723SPN_03","Candled EDO fuse failed to eject",null,null," - overhead conductor (bare; all aluminium conductor)"]
[17,4,"2020-07-22","14:08:00",-38.184565023919099,146.13012998702601,"N Canal Rd, Trafalgar VIC 3824, Australia",2202815,"MOE22","22kV AC","RURAL SHORT"," - fuse (boric acid)","single phase","Otherwise started by a distribution system","within area delineated on plan LEGL./16-354",4.5999999999999996,"NO FORECAST",0.1,0.45999999999999996,"E0051928","20200723SPN_02","Candled BA fuse failed to eject.",null,null," - overhead conductor (bare; copper)"]
[17,5,"2020-07-22","17:50:00",-38.1728869835243,146.11806997696399,"110 Hillbricks Rd, Trafalgar VIC 3824, Australia",2202852,"MOE22","22kV AC","RURAL SHORT"," - fuse (boric acid)","single phase","Otherwise started by a distribution system","within area delineated on plan LEGL./16-354",4.5999999999999996,"NO FORECAST",0.1,0.45999999999999996,"E0051942","20200723SPN_01","Candled fuse failed to eject.",null,null," - overhead conductor (bare; steel)"]
[17,6,"2020-07-27","09:03:00",-36.358104006459001,146.29504599659703,"120 Sisely Ave, Wangaratta VIC 3677, Australia",5107526,"WN4","Low voltage AC (<1kV)","RURAL SHORT"," - lamps (minor road)","single phase","Otherwise started by a distribution system","LBRA only",0.2,"NO FORECAST",0.1,2.0000000000000004E-2,"E0052086","20200729SPN_03","CFA reported street light fire, dispatched field crew to disconnect street light, follow up organised for street light replacement",null,null," - overhead conductor (ABC)"]
[17,7,"2020-07-28","03:23:00",-38.334492095316499,146.02608307240502,"20 Mayberrys Rd, Hallston VIC 3953, Australia",2000792,"LGA11","12.7kV AC (SWER)","RURAL LONG"," - fuse (boric acid)","single wire earth return (SWER)","Started by any tree, or part of a tree, falling upon or coming into contact with a distribution system","HBRA only",1,"NO FORECAST",0.1,0.1,"E0052186","20200729SPN_02","Crew found candled fuse caused by bark over the O/H bare wire.",null,null," - overhead conductor (covered uninsulated)"]
[17,8,"2020-08-03","12:20:00",-37.741020009064201,145.230248004976,"335 Ringwood-Warrandyte Rd, Warrandyte VIC 3113, Australia",1203803,"RWN34","Low voltage AC (<1kV)","RURAL SHORT"," - connection box","three phase","Otherwise started by a distribution system","within area delineated on plan LEGL./16-354",4.5999999999999996,"NO FORECAST",0.1,0.45999999999999996,"E0052460","20200803SPN_01","Pole box fire contained to network assets",null,null," - overhead conductor (insulated)"]
[17,9,"2020-08-13","07:34:00",-37.365851019276398,145.28357999815901,"33 Riverside Cres, Hazeldene VIC 3717, Australia",4707331,"SMR14","22kV AC","RURAL LONG"," - fuse (boric acid)","three phase","Otherwise started by a distribution system","within electric line construction area",19.8,"NO FORECAST",0.1,1,"E0053147","20200813SPN_01","Reported candled fuse",null,null,"Service lines"]
[17,10,"2020-08-17","04:49:00",-37.798504134484801,145.37152916343101,"3 Inverness Rd, Mount Evelyn VIC 3796, Australia",1000389,"LDL11","22kV AC","RURAL SHORT"," - overhead conductor (bare; aluminium core steel reinforced)","three phase","Started by any tree, or part of a tree, falling upon or coming into contact with a distribution system","within electric line construction area",19.8,"NO FORECAST",0.1,1,"E0053285","20200818SPN_01","A tree branch fell onto the 22kv O/H conductors and caught fire. Fire was contained to the branch only.",null,null," - overhead service conductor (residential)"]
[17,11,"2020-08-17","18:36:00",-38.286178975227003,146.48838298452301,"34 Mount View Ct, Hazelwood North VIC 3840, Australia",2606168,"TGN23","Low voltage AC (<1kV)","RURAL SHORT"," - connection box","three phase","Otherwise started by a distribution system","HBRA only",1,"NO FORECAST",0.1,0.1,"E0053355","20200820SPN_04","There was evidence of charing and smoldering of LV transformer leads and LV fuse carrier to U/G circuit .",null,null," - overhead service conductor (commercial / industrial)"]
[17,12,"2020-08-17","19:24:00",-38.441715338824494,146.09018483097501,"395 Holmes Rd, Boorool VIC 3953, Australia",2010031,"LGA13","12.7kV AC (SWER)","RURAL LONG"," - fuse (boric acid)","single wire earth return (SWER)","Otherwise started by a distribution system","HBRA only",1,"NO FORECAST",0.1,0.1,"E0053350","20200820SPN_03","suspected candled fuse",null,null," - overhead service conductor (subdivision / construction)"]
[17,13,"2020-08-19","19:00:00",-37.948755988063901,145.48614898951999,"3 Jeanne St, Cockatoo VIC 3781, Australia",417492,"BGE22","Low voltage AC (<1kV)","RURAL SHORT"," - connection box","three phase","Otherwise started by a distribution system","within area delineated on plan LEGL./16-354",4.5999999999999996,"NO FORECAST",0.1,0.45999999999999996,"E0053512","20200820SPN_01","A 100A LV fuse/junction box caught fire on pole 417492, outside 1 Halycon grove Cockatoo.",null,null," - overhead service conductor (other)"]
[17,14,"2020-08-21","06:24:00",-37.836256976890901,147.60483801792401,"4 Radford Pl, Bairnsdale VIC 3875, Australia",1608746,"BDL2","22kV AC","RURAL SHORT"," - fuse (EDO fuse)","three phase","Otherwise started by a distribution system","LBRA only",0.2,"NO FORECAST",0.1,2.0000000000000004E-2,"E0053648","20200824SPN_01","suspected candled fuse",null,null," - underground service cable (residential)"]
[17,15,"2020-08-27","19:55:00",-37.674931984712302,145.208774981652,"25 Jones Rd, Kangaroo Ground VIC 3097, Australia",922701,"ELM15","22kV AC","RURAL SHORT"," - overhead conductor (bare; all aluminium conductor)","single phase","Started by any tree, or part of a tree, falling upon or coming into contact with a distribution system","within area delineated on plan LEGL./16-354",4.5999999999999996,"NO FORECAST",0.1,0.45999999999999996,"E0055257","20200914SPN_03","A tree caused 22kv O/H conductors down to the ground and caused a small 0.5m squared ground fire.",null,null," - underground service cable (commercial / industrial)"]
[17,16,"2020-08-28","15:54:00",-36.9752424112013,145.70777980870301,"26 Shaws Rd, Merton VIC 3715, Australia",3913830,"MSD2","12.7kV AC (SWER)","RURAL LONG"," - fuse (boric acid)","single wire earth return (SWER)","Otherwise started by a distribution system","within area delineated on plan LEGL./16-354",4.5999999999999996,"NO FORECAST",0.1,0.45999999999999996,"E0054256","20200901SPN_02","suspected candled fuse",null,null," - underground service cable (subdivision / construction)"]
[17,17,"2020-08-29","07:30:00",-38.112906017792398,145.75247602450401,"135 Martin Rd, Longwarry VIC 3816, Australia",2707447,"WGL12","22kV AC","RURAL LONG"," - fuse (EDO fuse)","single phase","Otherwise started by a distribution system","HBRA only",1,"NO FORECAST",0.1,{"$f":"IF(OR(P54=\"\",R54=\"\"),\"\",IF(AND(O54=\"within electric line construction area\",Q54=\"No forecast\"),1,P54*R54))","v":0.1},"E0054268","20200901SPN_03","suspected candled fuse",null,null," - underground service cable (other)"]
[17,18,"2020-09-06","17:14:00",-38.327210000000001,145.93284,"700 Ferndale Rd, Ferndale VIC 3821, Australia",2601816505,"LGA24","12.7kV AC (SWER)","RURAL SHORT"," - overhead conductor (bare; steel)","single wire earth return (SWER)","Started by any tree, or part of a tree, falling upon or coming into contact with a distribution system","HBRA only",1,"NO FORECAST",0.1,0.1,"E0054706","20200907SPN_01","A tree has fallen on SWER Line resulting in a damaged bridge and a fire at the top of the pole. No ground fire caused.",null,null,"Underground cables"]
[17,19,"2020-09-08","02:50:00",-38.092805001498697,146.01698701521403,"1800 Old Sale Rd, Buln Buln East VIC 3821, Australia",2706696,"WGL24","22kV AC","RURAL LONG"," - overhead conductor (bare; steel)","single phase","Started by any tree, or part of a tree, falling upon or coming into contact with a distribution system","HBRA only",1,"NO FORECAST",0.1,0.1,"E0055256","20200914SPN_02","a tree branch fell onto HV open wire and caused a ground fire approxametly 70m squared.",null,null," - underground cable"]
[17,20,"2020-09-08","04:23:00",-37.776821998157295,145.58248299666499,"16 Silverwattle Rd, Launching Place VIC 3139, Australia",1405191,"WYK13","22kV AC","RURAL SHORT"," - overhead conductor (bare; all aluminium conductor)","three phase","Started by any tree, or part of a tree, falling upon or coming into contact with a distribution system","within area delineated on plan LEGL./16-354",4.5999999999999996,"NO FORECAST",0.1,0.45999999999999996,"E0054827","20200910SPN_01","A tree had fallen on the powerlines at lis 1406819 and caught fire.",null,null," - underground communications cable"]
[17,21,"2020-09-11","14:30:00",-37.779743004965297,147.443953999575,"Ripplewood Caravan Park, 2 Rodericks Rd, Wuk Wuk VIC 3875, Australia",1607065,"BDL44","22kV AC","RURAL LONG"," - insulators","three phase","Started by any person, bird, reptile or other animal coming into contact with a distribution system","within area delineated on plan LEGL./16-354",4.5999999999999996,"NO FORECAST",0.1,0.45999999999999996,"E0055247","20200924SPN_01","Caller called through stating arcing at pole.",null,null,"Poles"]
[17,22,"2020-09-20","14:27:00",-38.586551983581202,146.03854101157299,"1-11 Main St, Stony Creek VIC 3957, Australia",2027700,"LGA14","22kV AC","RURAL LONG"," - fuse (boric acid)","single phase","Otherwise started by a distribution system","HBRA only",1,"NO FORECAST",0.1,0.1,"E0055894","20200922SPN_02","Crew found candeling fuse that failed to eject. No ground fire.",null,null," - pole (concrete)"]
[17,23,"2020-09-25","11:28:00",-37.791413024472199,145.46942799647101,"46-44 C405, Seville VIC 3139, Australia",1003430,"WYK12","22kV AC","RURAL SHORT"," - fuse (boric acid)","single phase","Otherwise started by a distribution system","within area delineated on plan LEGL./16-354",4.5999999999999996,"NO FORECAST",0.1,0.45999999999999996,"E0056299","20200928SPN_01","Fuse found candeling",null,null," - pole (steel)"]
[17,24,"2020-09-29","07:08:00",-38.050767997415697,145.826015984012,"225 Jacksons Track, Labertouche VIC 3816, Australia",2718769,"WGL21","22kV AC","RURAL SHORT"," - fuse (EDO fuse)","single phase","Otherwise started by a distribution system","HBRA only",1,"NO FORECAST",0.1,0.1,"E0056469","20200929SPN_01","suspected candled fuse",null,null," - pole (wood)"]
[17,25,"2020-10-01","11:19:00",-37.867766004739096,145.25528599599201,"34 Wadhurst Dr, Boronia VIC 3155, Australia",1032748,"BRA13","22kV AC","URBAN"," - transformer (pole mounted)","three phase","Otherwise started by a distribution system","LBRA only",0.2,"NO FORECAST",0.1,2.0000000000000004E-2,"E0056756","20201002SPN_01","Found burning transformer HV cap @ LIS# 1032748 (fire affecting asset only), Transformer LV/HV was isolated/ made safe.",null,null,"Crossarms"]
[17,26,"2020-10-08","05:02:00",-38.183926008048097,146.49446797523601,"244 Scrubby Ln, Traralgon VIC 3844, Australia",2606535,"TGN11","22kV AC","RURAL SHORT"," - fuse (EDO fuse)","three phase","Otherwise started by a distribution system","HBRA only",1,"LOW-MODERATE",0.2,0.2,"E0057092","20201008SPN_01","Suspected candled fuses",null,null," - crossarm (wood)"]
[17,27,"2020-10-09","09:30:00",-38.108405994205796,145.91286702718901,"182 CAZALYS ROAD, BRANDY CREEK VIC 3821",2705633,"WGL21","Low voltage AC (<1kV)","RURAL SHORT"," - overhead service conductor (residential)","single phase","Started by any other thing forming part of or coming into contact with a distribution system","HBRA only",1,"LOW-MODERATE",0.2,0.2,"E0057271","20201013SPN_03","Electricity meter caught fire causing a loss of power.",null,null," - crossarm (steel)"]
[17,28,"2020-10-27","22:58:00",-37.827832016339698,145.33589497072302,"232 Sheffield Rd, Montrose VIC 3765, Australia",1208900,"BWR13","22kV AC","RURAL SHORT"," - overhead conductor (ABC)","three phase","Started by any tree, or part of a tree, falling upon or coming into contact with a distribution system","within electric line construction area",19.8,"LOW-MODERATE",0.2,3.9600000000000004,"E0058737","20201203SPN_01","A tree branch fell onto a HV ABC and smouldered",null,null," - crossarm (other)"]
[17,29,"2020-10-30","06:57:00",-38.514174017725693,145.50320096849501,"643 Densley Rd, Woolamai VIC 3995, Australia",2812797,"WGI23","Low voltage AC (<1kV)","RURAL SHORT"," - underground service cable (other)","single phase","Otherwise started by a distribution system","within area delineated on plan LEGL./16-354",4.5999999999999996,"LOW-MODERATE",0.2,0.91999999999999993,"E0059014","20201030SPN_01","A fire at sub pole 2812797 damaged lv cable and lv isolators \n",null,null,"Overhead assets"]
[17,30,"2020-11-12","12:32:00",-38.466798001041006,145.63600499580099,"1500 Loch-Wonthaggi Rd, Glen Alvie VIC 3979, Australia",2026773,"LGA23","22kV AC","RURAL LONG"," - fuse (EDO fuse)","single phase","Otherwise started by a distribution system","HBRA only",1,"LOW-MODERATE",0.2,0.2,"E0060032","20201116SPN_01","Operator on site found Fuses hung up and Surge Diverter Damaged. A small hand size burnt grass 0.1m squared found in the area. ",null,null," - capacity balancing units"]
[17,31,"2020-11-12","17:10:00",-38.449435038599802,146.07392514288802,"37 Kerrs Rd, Mardan VIC 3953, Australia",2010034,"LGA13","12.7kV AC (SWER)","RURAL LONG"," - fuse (EDO fuse)","single wire earth return (SWER)","Otherwise started by a distribution system","HBRA only",1,"LOW-MODERATE",0.2,0.2,"E0060109","20201116SPN_02","Candling BA Fuse. Replaced, No Ground fire. ",null,null," - connector / termination"]
[17,32,"2020-11-16","03:40:00",-38.135476999099396,146.22217799107,"45 Elizabeth Ct, Westbury VIC 3825, Australia",2201377,"MOE13","22kV AC","RURAL SHORT"," - overhead conductor (bare; steel)","single phase","Started by any tree, or part of a tree, falling upon or coming into contact with a distribution system","within area delineated on plan LEGL./16-354",4.5999999999999996,"HIGH",0.5,2.2999999999999998,"E0062441","20201204SPN_05","Pinus radiata, 20m H, DBH 900mm, 3.5m from nearest conductor,  has faulted at co-dominant leader 10m from ground level due to minor decay at site of Branch Bark Ridge and has hit the 22kv line. This caused a 2M squared ground fire.\n",null,null," - dropper / bridge"]
[17,33,"2020-11-16","06:27:00",-36.391848124156198,146.28174289346401,"117 C314, Wangaratta VIC 3677, Australia",5102952,"WN4","66kV AC","RURAL SHORT"," - overhead conductor (bare; all aluminium conductor)","three phase","Started in or originated from a distribution system","within area delineated on plan LEGL./16-354",4.5999999999999996,"HIGH",0.5,2.2999999999999998,"E0061021","20201124SPN_01"," INCD call was received for fire at base of a pole. Crew attended and found fire 5 x 6 mtrs at base of LIS 5102952\nFire was out at time of arrival.",null,null," - guy wire"]
[17,34,"2020-11-16","09:57:00",-37.986558011836898,146.91030799798,"32 Vardys Rd, Riverslea VIC 3860, Australia",2511567,"MFA34","22kV AC","RURAL SHORT"," - overhead conductor (bare; steel)","three phase","Started by any tree, or part of a tree, falling upon or coming into contact with a distribution system","LBRA only",0.2,"HIGH",0.5,0.1,"E0060363","20201204SPN_02","A large Cypress Pine has fallen accross a 3ph 22kV O/H line in a road reserve.\n\nTwo by burnt areas of grass /shrubs,  adding to approxametly 100M squared.\n",null,null," - insulator tie wires / connections"]
[17,35,"2020-11-17","00:17:00",-37.747545985654,145.354788018222,"83-89 Nelson Rd, Lilydale VIC 3140, Australia",1005873,"LDL22","22kV AC","URBAN"," - overhead conductor (bare; all aluminium conductor)","three phase","Started by any tree, or part of a tree, falling upon or coming into contact with a distribution system","LBRA only",0.2,"LOW-MODERATE",0.2,4.0000000000000008E-2,"E0060342","20210716SPN_03","MFB report tree on fire inside the Lilydale Heights College Nelson Rd in Lilydale with a branch touching HV. ",null,null," - insulators"]
[17,36,"2020-11-17","09:24:00",-38.223931500669799,146.468868899081,"5219 Princes Hwy, Traralgon VIC 3844, Australia",2626736,"TGN44","22kV AC","RURAL SHORT"," - overhead conductor (bare; aluminium core steel reinforced)","three phase","Started by any tree, or part of a tree, falling upon or coming into contact with a distribution system","HBRA only",1,"LOW-MODERATE",0.2,0.2,"E0060356","20201204SPN_03","A large tree branch (approx 15m in length) has fallen down, 1x conductor of a Single Phase line has been broken and lying on the ground.",null,null," - tower"]
[17,37,"2020-11-17","09:50:00",-38.1686177046221,147.05710522558601,"Oggey Creek Rd, Longford VIC 3851, Australia",2515644,"SLE31","22kV AC","RURAL LONG"," - overhead conductor (bare; all aluminium conductor)","three phase","Otherwise started by a distribution system","within area delineated on plan LEGL./16-354",4.5999999999999996,"LOW-MODERATE",0.2,0.91999999999999993,"E0060358","20201204SPN_04","Outside phase on a 3ph Int has come away from the insulator and resting against side of pole approx 1/2 way down the pole. There is a patch of burnt grass approx 2sqm directly below the crossarm",null,null," - traction lines"]
[17,38,"2020-11-17","22:03:00",-37.623060008068798,145.258971004214,"875 Kangaroo Ground-st Andrews Rd, Smiths Gully VIC 3760, Australia",920163,"DRN23","22kV AC","RURAL LONG"," - overhead conductor (bare; aluminium core steel reinforced)","three phase","Started by any tree, or part of a tree, falling upon or coming into contact with a distribution system","HBRA only",1,"LOW-MODERATE",0.2,{"$f":"IF(OR(P75=\"\",R75=\"\"),\"\",IF(AND(O75=\"within electric line construction area\",Q75=\"No forecast\"),1,P75*R75))","v":0.2},"E0060421","20201118SPN_02","A Tree branch brought down HV due to storm, between LIS #920163 & #920165. Started small grass fire about 25M squared.",null,null,"Underground assets"]
[{"$f":"COUNTA(C76:O76,Q76,T76:V76)","v":17},39,"2020-11-19","15:05:00",-37.8083886758997,147.647776779612,"125 Great Alpine Rd, Lucknow VIC 3875, Australia",5830047,"66KV NLA LINE CV","66kV AC","N/A"," - voltage regulator","three phase","Started in or originated from a distribution system","within area delineated on plan LEGL./16-354",{"$f":"IF(O76=\"\",\"\",IF(O76=\"LBRA only\",0.2,IF(O76=\"HBRA only\",1,IF(O76=\"within electric line construction area\",19.8,IF(O76=\"within area delineated on plan LEGL./16-354\",4.6,\"\")))))","v":4.5999999999999996},"LOW-MODERATE",{"$f":"IF(Q76=\"\",\"\",IF(Q76=\"No forecast\",0.1,IF(Q76=\"Low-moderate\",0.2,IF(Q76=\"High\",0.5,IF(Q76=\"Very high\",1,IF(Q76=\"Severe\",2,IF(Q76=\"Extreme\",3.5,5)))))))","v":0.2},0.91999999999999993,"E0060629","20201120SPN_01","Operator was attempting to tap NLA Regular when a coil in the mechanism caught fire\n",null,null," - LV pillar"]
[17,40,"2020-11-20","11:00:00",-36.8102171887789,146.45422912478401,"72 Smalls Ln, Cheshunt VIC 3678, Australia",5102766,"WN5","12.7kV AC (SWER)","RURAL LONG"," - fuse (EDO fuse)","single wire earth return (SWER)","Otherwise started by a distribution system","within area delineated on plan LEGL./16-354",4.5999999999999996,"HIGH",0.5,2.2999999999999998,"E0060707","20201120SPN_02","Fuse found hung up and candled",null,null," - services pit"]
[17,41,"2020-11-23","10:51:00",-36.298330991871801,146.842721989783,"128 Marcus Creek Rd, Yackandandah VIC 3749, Australia",5203931,"WOTS11","22kV AC","RURAL LONG"," - transformer (pole mounted)","single phase","Started by lightning striking a distribution system or a part of a distribution system ","within area delineated on plan LEGL./16-354",4.5999999999999996,"LOW-MODERATE",0.2,0.91999999999999993,"E0061976","20201204SPN_01","The pole top Transformer got struck by lightning and started smoking and then caught fire.",null,null,"Transformers"]
[17,42,"2020-11-24","05:46:00",-36.757524020274396,147.02353801475701,"Old Harrietville Rd, Freeburgh VIC 3741, Australia",4510073,"BRT21","22kV AC","RURAL SHORT"," - fuse (boric acid)","three phase","Otherwise started by a distribution system","HBRA only",1,"LOW-MODERATE",0.2,0.2,"E0061023","20201124SPN_02","Fuse was found candeling, suspected due to earlier lightning. No ground fire.",null,null," - transformer (pole mounted)"]
[17,43,"2020-11-24","15:42:00",-38.013170014307796,145.72246897107499,"735 Tonimbuk Rd, Tonimbuk VIC 3815, Australia",518420,"WGL12","22kV AC","RURAL LONG"," - fuse (boric acid)","three phase","Otherwise started by a distribution system","HBRA only",1,"LOW-MODERATE",0.2,0.2,"E0061066","20201125SPN_01","Crew found 6K BA HV fuse candled and hung up on arrival. No fire or any other damage.\n",null,null," - transformer (kiosk mounted)"]
[17,44,"2020-11-26","13:32:00",-37.177492992116598,145.06527399651199,"265 Kennys Ln, Broadford VIC 3658, Australia",4703540,"SMR22","22kV AC","RURAL LONG"," - overhead conductor (bare; all aluminium conductor)","three phase","Started by any person, bird, reptile or other animal coming into contact with a distribution system","within area delineated on plan LEGL./16-354",4.5999999999999996,"LOW-MODERATE",0.2,0.91999999999999993,"E0061303","20201127SPN_01","Tester ( Darcy Cooke ) while performing work on the Broadford Reg ( Not Commissioned ) heard a load bang. He observed a grass fire not far from him and alerted the CFA and Control Room. An operator was dispatched to observe and found a dead mag pie under Broadsew 1 S/S. LIS : 4703540. Observed flash mark on centre phase disc insulator and about 200 square meter's of grass fire extinguished by CFA.\n",null,null," - transformer (ground outdoor mounted)"]
[17,45,"2020-12-01","14:58:00",-37.018758196173899,145.14400606231001,"149-151 High St, Seymour VIC 3660, Australia",4716599,"SMR24","Low voltage AC (<1kV)","RURAL LONG"," - overhead conductor (bare; aluminium core steel reinforced)","three phase","Started by any tree, or part of a tree, falling upon or coming into contact with a distribution system","LBRA only",0.2,"HIGH",0.5,0.1,"E0061674","20201202SPN_01","A tree branch brought down an open wire LV cable and started a small ground fire",null,null," - transformer (indoor chamber mounted)"]
[17,46,"2020-12-01","17:39:00",-38.392162994247599,146.15033800322101,"30 Wells Rd, Mirboo North VIC 3871, Australia",2022001,"LGA11","22kV AC","RURAL LONG"," - overhead conductor (bare; all aluminium conductor)","three phase","Started by any tree, or part of a tree, falling upon or coming into contact with a distribution system","HBRA only",1,"HIGH",0.5,0.5,"E0062262","20201209SPN_05","A  tree branch caught fire @ LIS #2022001. No ground fire. Isolated & made safe.",null,null," - transformer (any other type)"]
[17,47,"2020-12-02","07:30:00",-38.169608440139498,146.810733763164,"Evergreen Rd, Rosedale VIC 3847, Australia",5722817,"TGN41","22kV AC","RURAL LONG"," - fuse (powder filled)","three phase","Started by any person, bird, reptile or other animal coming into contact with a distribution system","HBRA only",1,"LOW-MODERATE",0.2,0.2,"E0061715","20201202SPN_03","Crew found a blown fault tamer, dead bird on ground, 4M squared ground fire at base of pole.\n ",null,null," - measurement transformer (current transformer)"]
[17,48,"2020-12-05","11:14:00",-38.254215017110596,146.42661101556402,"Porters Rd, Hazelwood North VIC 3840, Australia",2614236,"MWL24","22kV AC","RURAL SHORT"," - overhead conductor (bare; aluminium core steel reinforced)","three phase","Started by any person, bird, reptile or other animal coming into contact with a distribution system","HBRA only",1,"HIGH",0.5,0.5,"E0062140","20201209SPN_01","MWL24 22kV Feeder tripped and locked out due to earth fault.\nCall of wires down in porters rd hazelwood.\nCrew confirm wires down, cfa on site.\nSmall grass fire in area.\n",null,null," - measurement transformer (voltage transformer)"]
[17,49,"2020-12-06","05:50:00",-37.815859012453096,145.348530014826,"46 Timberglades Rd, Montrose VIC 3765, Australia",1004989,"CYN33","22kV AC","RURAL SHORT"," - fuse (EDO fuse)","three phase","Otherwise started by a distribution system","LBRA only",0.2,"LOW-MODERATE",0.2,4.0000000000000008E-2,"E0062145","20201209SPN_03","suspected candled fuse",null,null," - measurement transformer (capacitive voltage transformer)"]
[17,50,"2020-12-06","14:23:00",-36.350160011714095,147.185841025678,"Powerline Rd, Tallandoon VIC 3695, Australia",5217397,"WOTS13","22kV AC","RURAL LONG"," - fuse (any other type)","single phase","Otherwise started by a distribution system","within area delineated on plan LEGL./16-354",4.5999999999999996,"LOW-MODERATE",0.2,0.91999999999999993,"E0062151","20201209SPN_04","suspected candled fuse",null,null,"Fuses and switchgear"]
[17,51,"2020-12-08","06:20:00",-38.4196070194184,145.949576992224,"550 Wild Dog Valley Rd, Leongatha North VIC 3953, Australia",2004095,"LGA22","22kV AC","RURAL SHORT"," - fuse (EDO fuse)","single phase","Otherwise started by a distribution system","HBRA only",1,"LOW-MODERATE",0.2,0.2,"E0062280","20201209SPN_06","At LIS 2004095, HV sub fuse candled. Possum found at base of pole. Made safe and replaced the fuse. \n",null,null," - fuse (boric acid)"]
[17,52,"2020-12-10","13:18:00",-37.973714856174603,147.25992937954501,"Unnamed Road, Perry Bridge VIC 3862, Australia",2515419,"SLE-BDSS","66kV AC","N/A"," - overhead conductor (bare; all aluminium conductor)","three phase","Started in or originated from a distribution system","HBRA only",1,"LOW-MODERATE",0.2,0.2,"E0070529","20210303SPN_04","SLE-BDSS 66kV Line locked with distance to fault target around pole 2515419.\nCrew patrolled reported no damage and no cause found for the trip. The line was then restored.\nAfter further investigation crew reported there was evidence of a 20 meters squared fire in area.\n",null,null," - fuse (EDO fuse)"]
[17,53,"2020-12-10","19:00:00",-38.282500017142802,146.43111102164002,"545 Tramway Rd, Hazelwood North VIC 3840, Australia",2617249,"MWL24","22kV AC","RURAL SHORT"," - dropper / bridge","three phase","Started by any person, bird, reptile or other animal coming into contact with a distribution system","HBRA only",1,"LOW-MODERATE",0.2,0.2,"E0062837","20201215SPN_01","A Crow fell to ground and started grass fire, approx. 3sq/meters, fire was extinguished on arrival. Crew had to repair a broken dropper caused by the crow.\n",null,null," - fuse (Fault Tamer)"]
[17,54,"2020-12-13","17:51:00",-38.068083005702704,145.607006979673,"Princes Hwy, Nar Nar Goon VIC 3812, Australia",510522,"PHM33","22kV AC","RURAL LONG"," - overhead conductor (bare; all aluminium conductor)","three phase","Started by any tree, or part of a tree, falling upon or coming into contact with a distribution system","HBRA only",1,"LOW-MODERATE",0.2,0.2,"E0062850","20201215SPN_02","A Ground Fire Princes Hwy Opp Fogarty Rd after tree fell over cable and cable broke and fell to the ground.",null,null," - fuse (powder filled)"]
[17,55,"2020-12-14","21:02:00",-38.205869799740597,147.294095153087,"Unnamed Road, Dutson Downs VIC 3851, Australia",5655521,"SLE31","22kV AC","RURAL LONG"," - connector / termination","three phase","Otherwise started by a distribution system","within area delineated on plan LEGL./16-354",4.5999999999999996,"HIGH",0.5,2.2999999999999998,"E0062980","20201217SPN_01","ACR SL019 tripped and locked out\n\nCrew patrolling found damaged HV connection at pole 5655521, causing a 5M X 20M ground fire at the base of the pole.\n\n5m x 20m fire at base of pole.\n",null,null," - fuse (any other type)"]
[17,56,"2020-12-17","10:23:00",-37.947873201493699,145.22867288934901,"2 Stud Rd, Rowville VIC 3178, Australia",524069,"ERTS-HPK","66kV AC","N/A"," - communications network assets","three phase","Otherwise started by a distribution system","HBRA only",1,"LOW-MODERATE",0.2,0.2,"E0063346","20210112SPN_01","An unused catanery and supervisory cable was found to be down causing a 60M square ground fire.",null,null," - circuit breaker"]
[17,57,"2020-12-22","01:02:00",-38.259511377115295,145.84080104485,"255 Brock Rd, Hallora VIC 3818, Australia",2706543,"WGL23","12.7kV AC (SWER)","RURAL SHORT"," - fuse (EDO fuse)","single wire earth return (SWER)","Otherwise started by a distribution system","HBRA only",1,"LOW-MODERATE",0.2,0.2,"E0063658","20201222SPN_01","Crew found edo fuse hung up but link had blown and hanging out bottom of tube, all else lookled ok, removed tube, replaced link and attempted restoration, fuse did not blow and acr went through hoops to lock out, tx faulty, suspect lightning\n",null,null," - switch (disconnector/isolator)"]
[17,58,"2020-12-23","21:19:00",-37.729376981466096,148.505047019188,"555 Marlo Rd, Marlo VIC 3888, Australia",1906607,"NLA31","22kV AC","RURAL LONG"," - fuse (EDO fuse)","single phase","Otherwise started by a distribution system","HBRA only",1,"LOW-MODERATE",0.2,0.2,"E0063695","20210104SPN_01","Operator on call found 2 Candled fuses @ LIS : 1906607. No other damage ,",null,null," - switch (earth)"]
[17,59,"2020-12-27","17:30:00",-36.4630860229719,146.22981799419102,"Fosters Lake Reserve, 1011 Glenrowan Rd, Glenrowan VIC 3675, Australia",5104796,"WN6","22kV AC","RURAL LONG"," - surge diverter","three phase","Started in or originated from a distribution system","within area delineated on plan LEGL./16-354",4.5999999999999996,"VERY HIGH",1,4.5999999999999996,"E0063724","20210104SPN_02","At LIS 5104796, a blown LA on load side of the switch resulted in a 100M squared ground fire at base of pole. Fire was out on arrival of fault crew",null,null," - switch (FuseSaver)"]
[17,60,"2020-12-28","02:03:00",-37.8704550137167,145.41713501731701,"15 Blueberry Ln, Monbulk VIC 3793, Australia",1321281,"BGE11","Low voltage AC (<1kV)","RURAL SHORT"," - overhead conductor (ABC)","three phase","Otherwise started by a distribution system","within area delineated on plan LEGL./16-354",4.5999999999999996,"LOW-MODERATE",0.2,0.91999999999999993,"E0063726","20210104SPN_03","LV ABC caught fire causing a suspected LV injection, fuses operated.",null,null," - switch (any other type)"]
[17,61,"2021-01-02","09:22:00",-36.399334137095003,146.18281214360402,"Unnamed Road, Taminick VIC 3675, Australia",5105928,"WN6","12.7kV AC (SWER)","RURAL LONG"," - overhead conductor (bare; steel)","single wire earth return (SWER)","Started by any other thing forming part of or coming into contact with a distribution system","within area delineated on plan LEGL./16-354",4.5999999999999996,"LOW-MODERATE",0.2,0.91999999999999993,"E0063792","20210105SPN_02","Swer ACR WN190 Tripped and locked out. Matthew Macewen reported that a tractor made contact with HV SWER conductor at midspan between Lis 5105927 and 5105928, causing a 70m X 500M ground fire which was extinguished by CFA.",null,null,"SCADA, network control and protection systems"]
[17,62,"2021-01-02","23:31:00",-38.244522617114797,145.766286737717,"72 McIntosh Rd, Athlone VIC 3818, Australia",2703504,"WGL11","12.7kV AC (SWER)","RURAL SHORT"," - fuse (boric acid)","single wire earth return (SWER)","Otherwise started by a distribution system","HBRA only",1,"LOW-MODERATE",0.2,0.2,"E0063794","20210106SPN_01","CFA witnessed candled 6k BA fuse arcing.",null,null," - audio frequency load controller (AFLC)"]
[17,63,"2021-01-05","17:38:00",-38.352254990215094,145.67304501988201,"160 Henrys Rd, Nyora VIC 3987, Australia",2008630,"LLG12","22kV AC","RURAL SHORT"," - fuse (EDO fuse)","single phase","Otherwise started by a distribution system","within area delineated on plan LEGL./16-354",4.5999999999999996,"LOW-MODERATE",0.2,0.91999999999999993,"E0063950","20210106SPN_02","Fuse found candled at LIS 2008630",null,null," - arc suppresion coil"]
[17,64,"2021-01-06","01:38:00",-37.9006650219265,145.39646300560099,"58 William Rd, The Patch VIC 3792, Australia",1303866,"BGE13","22kV AC","RURAL SHORT"," - overhead conductor (ABC)","three phase","Started by any tree, or part of a tree, falling upon or coming into contact with a distribution system","within electric line construction area",19.8,"LOW-MODERATE",0.2,3.9600000000000004,"E0063951","20210106SPN_03","Tree bark landed on sub pole and caught fire.",null,null," - automatic circuit recloser (ACR)"]
[17,65,"2021-01-08","17:21:00",-38.379074633659002,146.78916634471202,"312 C453, Carrajung South VIC 3844, Australia",2611990,"TGN41","12.7kV AC (SWER)","RURAL LONG"," - fuse (boric acid)","single wire earth return (SWER)","Otherwise started by a distribution system","HBRA only",1,"LOW-MODERATE",0.2,0.2,"E0064243","20210113SPN_02","At LIS 2611990 and LIS 2611989, 1 HV fuse candled at each of the poles.\n\nA 24msq ground fire was at LIS 2611990 which had been extinguished by Fire Fighters.\n",null,null," - communications linear assets"]
[17,66,"2021-01-09","09:30:00",-38.192158068959202,147.20345343886402,"207 Johnsons Rd, Dutson VIC 3851, Australia",5742413,"SLE31","Low voltage AC (<1kV)","RURAL LONG"," - switch (disconnector/isolator)","three phase","Otherwise started by a distribution system","within area delineated on plan LEGL./16-354",4.5999999999999996,"LOW-MODERATE",0.2,0.91999999999999993,"E0064259","20210113SPN_03","At LIS 5742413 A Melted krone box caused a 6mtr sq grass fire\n",null,null," - communications network assets"]
[17,67,"2021-01-09","17:22:00",-38.223872995269197,145.69696898470301,"Unnamed Road, Yannathan VIC 3981, Australia",512039,"WGL12","22kV AC","RURAL LONG"," - overhead conductor (bare; aluminium core steel reinforced)","single phase","Otherwise started by a distribution system","HBRA only",1,"LOW-MODERATE",0.2,0.2,"E0064263","20210113SPN_05","Crew reports candled fuse at LIS 512039. No fire, fuse had just burnt out.\n",null,null," - communications site infrastructure"]
[17,68,"2021-01-11","07:10:00",-37.8671945275577,145.254198265924,"67 Wadhurst Dr, Boronia VIC 3155, Australia",1221208,"BRA23","Low voltage AC (<1kV)","URBAN"," - underground service cable (residential)","single phase","Started by any tree, or part of a tree, falling upon or coming into contact with a distribution system","LBRA only",0.2,"VERY HIGH",1,0.2,"E0064280","20210113SPN_04","Mfb called to report powerlines arcing and sparking @ 60 Wadhurst de Boronia [- on arrival crew found service had been rubbed through by tree branch and small ground fire, 1M squared ground fire occurred @ 66 Wadhurst  - MFB put fire out before crew arrived",null,null," - field devices"]
[17,69,"2021-01-12","19:57:00",-38.256188017998504,146.488824011882,"705 Hazelwood Rd, Hazelwood North VIC 3840, Australia",2606129,"TGN23","22kV AC","RURAL SHORT"," - switch (disconnector/isolator)","three phase","Otherwise started by a distribution system","HBRA only",1,"LOW-MODERATE",0.2,0.2,"E0064449","20210113SPN_01","Load side isolator of TN010 arcing due to not being correctly latched and caused a small pole fire. Was arcing on arrival of fault truck. The circuit was isolated and the crew aligned the isolator properly with stick. This caused a 0.2 X 0.1 meter ground fire.",null,null," - local network wiring assets"]
[17,70,"2021-01-13","12:30:00",-36.417367235673098,146.777776030967,"278 Mt Stanley Rd, Stanley VIC 3747, Australia",4506362,"MYT12","Low voltage AC (<1kV)","RURAL LONG"," - connector / termination","single phase","Otherwise started by a distribution system","within area delineated on plan LEGL./16-354",4.5999999999999996,"VERY HIGH",1,{"$f":"IF(OR(P107=\"\",R107=\"\"),\"\",IF(AND(O107=\"within electric line construction area\",Q107=\"No forecast\"),1,P107*R107))","v":4.5999999999999996},"E0064532","20210114SPN_01","Call was recieved that the electricity meter was on fire. REC changed the meter panel and a new meter was installed. Still under investigation to the cause, if it was the customers installation fault or meter fault.",null,null," - master station assets"]
[17,71,"2021-01-20","21:00:00",-38.130486016763101,146.81969302418,"83 Nambrok Rd, Nambrok VIC 3847, Australia",2500444,"MFA23","22kV AC","RURAL SHORT"," - dropper / bridge","three phase","Started by any other thing forming part of or coming into contact with a distribution system","HBRA only",1,"LOW-MODERATE",0.2,0.2,"E0065256","20210128SPN_01","  \n\nMFA23 tripped and locked out as ARS was supressed for a crew working close to the mainline.\nHV operator was restoring after repairs to a HV bridge under EAP on LIS 2500444. LLC came into contact with steel Xarm while attached to operating stick.\nResulted in trip on EF at MFA23 CB.\nLLC came into contact with steel Xarm while attached to operating stick causing an 1M square ground fire.\nThis was only reported as a ground fire during investigation 27/01/2021.\n \n ",null,null," - neutral earthing resistor"]
[17,72,"2021-01-22","11:00:00",-37.719877006220798,145.220857992172,"9A Floods Rd, North Warrandyte VIC 3113, Australia",1206630,"RWN34","Low voltage AC (<1kV)","RURAL SHORT"," - underground service cable (residential)","single phase","Started by any tree, or part of a tree, falling upon or coming into contact with a distribution system","within electric line construction area",19.8,"HIGH",0.5,9.9,"E0065453","20210127SPN_01","A tree fell on the overhead lines causing a 5M ground fire.",null,null," - oil-filled circuit recloser (OCR)"]
[17,73,"2021-01-24","18:43:00",-37.7435130028665,145.19869002366499,"55 Pound Rd, Warrandyte VIC 3113, Australia",1205683,"RWN26","Low voltage AC (<1kV)","RURAL SHORT"," - connection box","three phase","Otherwise started by a distribution system","within area delineated on plan LEGL./16-354",4.5999999999999996,"HIGH",0.5,2.2999999999999998,"E0065506","20210127SPN_03","A FOLCB on the pole burnt out causing a small 4M squared ground fire.",null,null," - rapid earth fault current limiter (REFCL)"]
[17,74,"2021-01-25","14:10:00",-37.693312983831497,145.16507300518003,"21 Wombat Dr, Eltham VIC 3095, Australia",923533,"ELM33","Low voltage AC (<1kV)","URBAN"," - switch (disconnector/isolator)","three phase","Otherwise started by a distribution system","LBRA only",0.2,"VERY HIGH",1,0.2,"E0065583","20210127SPN_04","At lis 923533 there was a ground fire approx 36M squared below blown fuse.. Crew with epv and traffic required to replace 3 phase folcb",null,null," - surge diverter"]
[17,75,"2021-01-27","13:00:00",-37.9510230167554,146.99819297877599,"53 Fulton Rd, Maffra VIC 3860, Australia",2511026,"MFA31","22kV AC","RURAL SHORT"," - overhead conductor (bare; all aluminium conductor)","three phase","Started by any other thing forming part of or coming into contact with a distribution system","LBRA only",0.2,"LOW-MODERATE",0.2,4.0000000000000008E-2,"E0065705","20210127SPN_05","An escavator from macalister earthmoving struck the 22kV between LIS# 2511026 & 1614036.\n\nThis bought down a phase of 22kv to ground which caused a grass fire 5meters x 5meters. Protection operated.\n\nCFA where onsite when the fault truck arrived. Protection operated.\n\nno one hurt.\n",null,null," - voltage regulator"]
[17,76,"2021-01-28","18:42:00",-38.267106016432095,146.21793099053701,"131 Falls Rd, Narracan VIC 3824, Australia",2207681,"MOE23","22kV AC","RURAL LONG"," - overhead conductor (bare; all aluminium conductor)","single phase","Started by any tree, or part of a tree, falling upon or coming into contact with a distribution system","within area delineated on plan LEGL./16-354",4.5999999999999996,"LOW-MODERATE",0.2,0.91999999999999993,"E0065941","20210129SPN_01","A Wire down & Grass fire between LIS 2207681 &2207680 was reported. This was caused by a tree falling and contacting the 22KV HV bare open wire.\n",null,null,"Public lighting"]
[17,77,"2021-01-29","20:30:00",-38.146394020363203,146.343464991215,"110 Strettons Track, Yallourn North VIC 3825, Australia",2200643,"MOE15","22kV AC","RURAL SHORT"," - fuse (boric acid)","single phase","Otherwise started by a distribution system","within area delineated on plan LEGL./16-354",4.5999999999999996,"LOW-MODERATE",0.2,0.91999999999999993,"E0066111","20210202SPN_02","Reported candled BA fuse.",null,null," - brackets (major road)"]
[17,78,"2021-01-30","11:14:00",-38.294926999592896,145.56078201845401,"5175 S Gippsland Hwy, Lang Lang VIC 3984, Australia",523813,"LLG13","22kV AC","RURAL SHORT"," - fuse (EDO fuse)","three phase","Otherwise started by a distribution system","within area delineated on plan LEGL./16-354",4.5999999999999996,"LOW-MODERATE",0.2,0.91999999999999993,"E0066118","20210202SPN_03","Reported candled EDO fuse.",null,null," - brackets (minor road)"]
[17,79,"2021-02-04","22:07:00",-38.479739981562297,145.282889997571,"230 Rhyll-Newhaven Rd, Rhyll VIC 3923, Australia",2805487,"PHI11","22kV AC","RURAL SHORT"," - transformer (pole mounted)","single phase","Otherwise started by a distribution system","HBRA only",1,"LOW-MODERATE",0.2,0.2,"E0066720","20210401SPN_01","A bushing cover had melted and caused a 10m squared ground fire.",null,null," - lamps (major road)"]
[17,80,"2021-02-07","13:50:00",-38.2375250035428,146.43205598796101,"Mid Valley SC, Morwell VIC 3840, Australia",2626801,"MWL22","Low voltage AC (<1kV)","URBAN"," - underground service cable (residential)","single phase","Started by any tree, or part of a tree, falling upon or coming into contact with a distribution system","LBRA only",0.2,"LOW-MODERATE",0.2,4.0000000000000008E-2,"E0066927","20210225SPN_02","An O/H LV service was rubbed through by a tree branch causing a 4 x 2 mtr grass fire extinguished by CFA\n",null,null," - lamps (minor road)"]
[17,81,"2021-02-07","21:00:00",-37.691580014556294,145.34642998551803,"178-180 Victoria Rd, Yering VIC 3770, Australia",1006767,"CPK12","22kV AC","RURAL SHORT"," - fuse (boric acid)","three phase","Otherwise started by a distribution system","within area delineated on plan LEGL./16-354",4.5999999999999996,"LOW-MODERATE",0.2,0.91999999999999993,"E0066930","20210208SPN_01","Crew arrived on site and reported a BA fuse candled.",null,null," - luminaires (major road)"]
[17,82,"2021-02-09","06:29:00",-38.068462018488098,145.57262099702498,"1975 Princes Hwy, Nar Nar Goon VIC 3812, Australia",558706,"PHM33","22kV AC","RURAL LONG"," - fuse (boric acid)","three phase","Otherwise started by a distribution system","HBRA only",1,"LOW-MODERATE",0.2,0.2,"E0067089","20210209SPN_01","Reported fuse candling.",null,null," - luminaires (minor road)"]
[17,83,"2021-02-09","17:23:00",-38.371289018570195,146.27034398837901,"1010 Darlimurla Rd, Boolarra VIC 3870, Australia",2620525,"MWL11","22kV AC","RURAL LONG"," - dropper / bridge","single phase","Otherwise started by a distribution system","HBRA only",1,"LOW-MODERATE",0.2,0.2,"E0067211","20210210SPN_02","Pole fire at lis 2620525, no ground fire.",null,null," - poles / columns (major road)"]
[17,84,"2021-02-10","00:11:00",-38.343761027711999,146.11198900598501,"405 Allambee S Rd, Thorpdale South VIC 3824, Australia",2205914,"MOE23","22kV AC","RURAL LONG"," - fuse (EDO fuse)","single phase","Otherwise started by a distribution system","within area delineated on plan LEGL./16-354",4.5999999999999996,"LOW-MODERATE",0.2,0.91999999999999993,"E0067219","20210210SPN_01","Operator found EDO fuse candled ",null,null," - poles / columns (minor road)"]
[17,85,"2021-02-10","23:44:00",-37.614083977409599,145.262185986394,"5 Youngs Rd, St Andrews VIC 3761, Australia",920883,"DRN23","22kV AC","RURAL LONG"," - fuse (boric acid)","single phase","Otherwise started by a distribution system","HBRA only",1,"LOW-MODERATE",0.2,0.2,"E0067350","20210211SPN_01","22KV 6k drop out fuse caught fire.",null,null,"Other "]
[17,86,"2021-02-11","15:21:00",-37.651509001023399,145.03069903168102,"6 Davisson St, Epping VIC 3076, Australia",913775,"EPG34","22kV AC","URBAN"," - switch (disconnector/isolator)","three phase","Otherwise started by a distribution system","LBRA only",0.2,"HIGH",0.5,0.1,"E0067548","20210212SPN_01","It was reported that a sparking wire at red phase isolator caused a ground fire 1M squared.",null,null," - connection box"]
[17,87,"2021-02-11","22:24:00",-37.669508006780902,145.16078102924101,"126 Broad Gully Rd, Diamond Creek VIC 3089, Australia",5695313,"ELM26","Low voltage AC (<1kV)","RURAL SHORT"," - luminaires (minor road)","single phase","Otherwise started by a distribution system","LBRA only",0.2,"HIGH",0.5,0.1,"E0067587","20210212SPN_02","We received a call stating a street light was on fire.",null,null," - earth / earthing"]
[17,88,"2021-02-13","20:02:00",-36.389792991940503,146.328942975741,"Lacelee Lodge, 246 Clarkes Ln, Laceby VIC 3678, Australia",5106796,"WN6","22kV AC","RURAL LONG"," - fuse (EDO fuse)","three phase","Otherwise started by a distribution system","within area delineated on plan LEGL./16-354",4.5999999999999996,"LOW-MODERATE",0.2,0.91999999999999993,"E0067747","20210217SPN_02","Reported candled fuse."]
[17,89,"2021-02-15","01:09:00",-37.676776898290498,145.02923448384001,"174 The Blvd, Thomastown VIC 3074, Australia",909378,"TT4","Low voltage AC (<1kV)","URBAN"," - lamps (minor road)","single phase","Otherwise started by a distribution system","LBRA only",0.2,"LOW-MODERATE",0.2,4.0000000000000008E-2,"E0069175","20210223SPN_02","A call in from a member of the public stated that a street light caught fire. No ground fire."]
[17,90,"2021-02-15","17:27:00",-37.943414993272299,145.47677500224,"5 Paternoster Rd, Cockatoo VIC 3781, Australia",400235,"BGE23","Low voltage AC (<1kV)","RURAL SHORT"," - connection box","single phase","Otherwise started by a distribution system","within area delineated on plan LEGL./16-354",4.5999999999999996,"LOW-MODERATE",0.2,0.91999999999999993,"E0068017","20210216SPN_01","FOLCB caught fire and started to burn the timber pole.",null,null,"Extra low voltage AC (<50V)"]
[17,91,"2021-02-16","15:48:00",-38.301262375342404,145.56335615846399,"5215 S Gippsland Hwy, Lang Lang VIC 3984, Australia",5775361,"LLG13","Low voltage AC (<1kV)","RURAL SHORT"," - transformer (kiosk mounted)","three phase","Started by any person, bird, reptile or other animal coming into contact with a distribution system","within area delineated on plan LEGL./16-354",4.5999999999999996,"LOW-MODERATE",0.2,0.91999999999999993,"E0068243","20210217SPN_01","A C/B at the rear of a kiosk sub caught fire. CFA extinguished the fire. A rat was the cause of the S/S LV CTs to fail and arch across White to Blue phase at CB.",null,null,"Low voltage AC (<1kV)"]
[17,92,"2021-02-17","19:03:00",-37.656559993442904,145.41471900406802,"825 C726, Yarra Glen VIC 3775, Australia",1009452,"LDL14","22kV AC","RURAL SHORT"," - overhead conductor (bare; aluminium core steel reinforced)","three phase","Otherwise started by a distribution system","within area delineated on plan LEGL./16-354",4.5999999999999996,"LOW-MODERATE",0.2,0.91999999999999993,"E0068713","20210218SPN_01","A 22kv wire came down and caused a small grass fire approx 20m x 4m between LIS# 1009452 & 1009455.",null,null,"2.2kV AC"]
[17,93,"2021-02-17","22:22:00",-38.042824046907093,145.26457794852499,"15 Central Rd, Hampton Park VIC 3976, Australia",505134,"HPK21","Low voltage AC (<1kV)","URBAN"," - connection box","three phase","Otherwise started by a distribution system","LBRA only",0.2,"LOW-MODERATE",0.2,4.0000000000000008E-2,"E0068744","20210218SPN_02","An FOLCB caught fire, No ground fire.",null,null,"6.6kV AC"]
[17,94,"2021-02-18","13:43:00",-37.769869011413199,145.27226300616499,"7 Derwent Cl, Croydon Hills VIC 3136, Australia",1215309,"CPK11","Low voltage AC (<1kV)","RURAL SHORT"," - overhead conductor (bare; all aluminium conductor)","single phase","Started by any tree, or part of a tree, falling upon or coming into contact with a distribution system","LBRA only",0.2,"LOW-MODERATE",0.2,4.0000000000000008E-2,"E0068827","20210218SPN_04","A tree brought down a 22kv cable causing a 50m squared ground fire.",null,null,"11kV AC"]
[17,95,"2021-02-19","21:55:00",-37.840642990078393,145.31642200655702,"3 Lillypilly Ln, Kilsyth South VIC 3137, Australia",1032848,"BWR13","Low voltage AC (<1kV)","RURAL SHORT"," - connection box","three phase","Otherwise started by a distribution system","HBRA only",1,"HIGH",0.5,0.5,"E0069079","20210222SPN_01","An inline fuse box caught fire causing a 0.5 meter squared ground fire.",null,null,"12.7kV AC (SWER)"]
[17,96,"2021-02-23","17:34:00",-37.683574012087497,145.43570202118599,"834-836 B360, Coldstream VIC 3770, Australia",1409336,"LDL23","22kV AC","RURAL LONG"," - fuse (boric acid)","three phase","Started by any person, bird, reptile or other animal coming into contact with a distribution system","within area delineated on plan LEGL./16-354",4.5999999999999996,"LOW-MODERATE",0.2,0.91999999999999993,"E0069400","20210224SPN_01","A crow was hung up on a BA fuse causing a 4m squared ground fire at the base of Pole 1409336. (Switch HE114) Crew was able to safely remove Crow. No damage to assets.\n",null,null,"22kV AC"]
[17,97,"2021-02-26","06:27:00",-38.220333004693295,146.079587016098,"81 Yarragon S Rd, Yarragon VIC 3823, Australia",2203405,"MOE21","22kV AC","RURAL LONG"," - fuse (boric acid)","three phase","Otherwise started by a distribution system","within area delineated on plan LEGL./16-354",4.5999999999999996,"LOW-MODERATE",0.2,0.91999999999999993,"E0069905","20210226SPN_01","At P#2203405 center phase fuse candled. ",null,null,"33kV AC"]
[17,98,"2021-02-26","10:33:00",-37.897722004141201,147.38422699663303,"Robertsons Ln, Lindenow South VIC 3875, Australia",1601423,"BDL44","22kV AC","RURAL LONG"," - fuse (boric acid)","single phase","Otherwise started by a distribution system","within area delineated on plan LEGL./16-354",4.5999999999999996,"LOW-MODERATE",0.2,0.91999999999999993,"E0069909","20210226SPN_02","1 blown fuse and 1candled fuse. fuses blew due to a 10KVA transformer fault.",null,null,"66kV AC"]
[17,99,"2021-02-27","05:59:00",-38.504822022233398,145.496864002922,"315 Woolamai Rd, Woolamai VIC 3995, Australia",2803710,"WGI23","Low voltage AC (<1kV)","RURAL SHORT"," - connection box","three phase","Otherwise started by a distribution system","within area delineated on plan LEGL./16-354",4.5999999999999996,"LOW-MODERATE",0.2,0.91999999999999993,"E0070042","20210302SPN_03","FOLCB on pole caught fire.",null,null,"132kV AC"]
[17,100,"2021-02-28","13:02:00",-37.694545531942701,145.00982668107602,"High St/Mahoneys Rd (Thomastown), Thomastown VIC 3074, Australia",928096,"TT12","22kV AC","URBAN"," - surge diverter","three phase","Started by any other thing forming part of or coming into contact with a distribution system","LBRA only",0.2,"HIGH",0.5,0.1,"E0070084","20210303SPN_01","There was a ground fire in tree stump near LIS 9028096 next to transmission tower inside TTS. Suspected balloon found in terminal yard. this caused a secondary fault at LIS 910788. melted poly insulators on CHP, replaced the surge diverters and fuses. ",null,null,"220kV AC"]
[17,101,"2021-03-01","06:29:00",-37.016953015448401,145.04567499037802,"790 Seymour-Tooborac Rd, Puckapunyal VIC 3662, Australia",4709470,"SMR23","22kV AC","RURAL SHORT"," - fuse (EDO fuse)","three phase","Otherwise started by a distribution system","within area delineated on plan LEGL./16-354",4.5999999999999996,"LOW-MODERATE",0.2,0.91999999999999993,"E0070205","20210303SPN_02","Fuse found candled on LIS 4709470.",null,null,"330kV AC"]
[17,102,"2021-03-02","17:13:00",-37.847176986401195,148.00086398873299,"142 Colquhoun Rd, Lakes Entrance VIC 3909, Australia",1903716,"BDL41","22kV AC","RURAL LONG"," - fuse (EDO fuse)","three phase","Otherwise started by a distribution system","within area delineated on plan LEGL./16-354",4.5999999999999996,"LOW-MODERATE",0.2,{"$f":"IF(OR(P139=\"\",R139=\"\"),\"\",IF(AND(O139=\"within electric line construction area\",Q139=\"No forecast\"),1,P139*R139))","v":0.91999999999999993},"E0070635","20210419SPN_01","Reported candled fuse.",null,null,"500kV AC"]
[{"$f":"COUNTA(C140:O140,Q140,T140:V140)","v":17},103,"2021-03-02","19:02:00",-36.634145995119297,145.728269973441,"37 Ashwin St, Violet Town VIC 3669, Australia",3903943,"BN1","22kV AC","RURAL LONG"," - overhead conductor (bare; steel)","single phase","Started by any tree, or part of a tree, falling upon or coming into contact with a distribution system","within area delineated on plan LEGL./16-354",{"$f":"IF(O140=\"\",\"\",IF(O140=\"LBRA only\",0.2,IF(O140=\"HBRA only\",1,IF(O140=\"within electric line construction area\",19.8,IF(O140=\"within area delineated on plan LEGL./16-354\",4.6,\"\")))))","v":4.5999999999999996},"HIGH",{"$f":"IF(Q140=\"\",\"\",IF(Q140=\"No forecast\",0.1,IF(Q140=\"Low-moderate\",0.2,IF(Q140=\"High\",0.5,IF(Q140=\"Very high\",1,IF(Q140=\"Severe\",2,IF(Q140=\"Extreme\",3.5,5)))))))","v":0.5},2.2999999999999998,"E0070671","20210303SPN_06","MFB called to report pole down, on a return call to MFB for more information their report said wires down, with a grass fire approx 1 acre . On arrival Linesman found tree branch on lines only between lis 3903943 and 3903936 and confirmed the ground fire.",null,null,"Extra low voltage DC (<120V ripple free)"]
[17,104,"2021-03-04","00:30:00",-37.911892014826996,145.356551984785,"3 Belgrave-Hallam Rd, Belgrave VIC 3160, Australia",1317874,"BGE11","Low voltage AC (<1kV)","RURAL SHORT"," - luminaires (major road)","single phase","Started by any person, bird, reptile or other animal coming into contact with a distribution system","within area delineated on plan LEGL./16-354",4.5999999999999996,"LOW-MODERATE",0.2,0.91999999999999993,"E0071038","20210304SPN_01","MFB called in stating there was a pole fire. the crew attended and found that an 80 watt mercury vapor street light was burnt and there was a burnt dead possum at the base of the pole.",null,null,"Low voltage DC (<1.5kV)"]
[17,105,"2021-03-05","13:45:00",-38.183499994012799,146.51767498090902,"57 Cross's Rd, Traralgon VIC 3844, Australia",2601445,"TGN11","22kV AC","RURAL SHORT"," - overhead conductor (bare; aluminium core steel reinforced)","three phase","Started by any person, bird, reptile or other animal coming into contact with a distribution system","LBRA only",0.2,"LOW-MODERATE",0.2,4.0000000000000008E-2,"E0071512","20210309SPN_02","A bird contacted the 22KV O/H wires and fell to the ground and started a 2000 Meter squared ground fire.",null,null,"600V DC"]
[17,106,"2021-03-10","05:12:00",-38.014306996622196,146.84103800969402,"Unnamed Road, Denison VIC 3858, Australia",2510003,"MFA34","22kV AC","RURAL SHORT"," - fuse (EDO fuse)","single phase","Otherwise started by a distribution system","LBRA only",0.2,"LOW-MODERATE",0.2,4.0000000000000008E-2,"E0072191","20210310SPN_02","Candled fuse at LIS 2510003",null,null,"1500V DC"]
[17,107,"2021-03-10","15:48:00",-37.840157016034901,145.47211500286002,"13 Eleanor Dr, Silvan VIC 3795, Australia",1013462,"LDL13","22kV AC","RURAL SHORT"," - fuse (boric acid)","single phase","Otherwise started by a distribution system","within area delineated on plan LEGL./16-354",4.5999999999999996,"LOW-MODERATE",0.2,0.91999999999999993,"E0072460","20210311SPN_01","A BA 22KV fuse was found candled and broken. No ground fire. Possible cause was a bird found on bushings.",null,null,"Earthing cable"]
[17,108,"2021-03-12","06:51:00",-38.302808987367698,146.541408010932,"35 Traralgon-Balook Rd, Traralgon South VIC 3844, Australia",2605213,"TGN23","22kV AC","RURAL SHORT"," - fuse (boric acid)","single phase","Otherwise started by a distribution system","HBRA only",1,"LOW-MODERATE",0.2,0.2,"E0073996","20210318SPN_01","Candled BA fuse was found with a dead possum at the base of the pole."]
[17,109,"2021-03-12","23:51:00",-38.069680634191499,145.26031097051199,"12 Zain St, Lynbrook VIC 3975, Australia",5758586,"HPK23","Low voltage AC (<1kV)","URBAN"," - luminaires (minor road)","single phase","Otherwise started by a distribution system","HBRA only",1,"LOW-MODERATE",0.2,0.2,"E0072952","20210315SPN_01","It was reported that a street light was on fire."]
[17,110,"2021-03-13","12:47:00",-38.424876016496597,146.13173800075899,"100 Peters Ln, Mirboo North VIC 3871, Australia",2010012,"LGA13","22kV AC","RURAL LONG"," - overhead conductor (bare; copper)","single phase","Started by any tree, or part of a tree, falling upon or coming into contact with a distribution system","HBRA only",1,"LOW-MODERATE",0.2,0.2,"E0073208","20210316SPN_01","Cypress tree branch was across 22KV O/H bare conductors was burning.",null,null,"single wire earth return (SWER)"]
[17,111,"2021-03-13","13:06:00",-38.1239951069808,145.84772412411201,"6 McLean St, Drouin VIC 3818, Australia",2707470,"WGL21","22kV AC","RURAL SHORT"," - fuse (boric acid)","three phase","Otherwise started by a distribution system","LBRA only",0.2,"LOW-MODERATE",0.2,4.0000000000000008E-2,"E0073207","20210315SPN_02","Reported candled fuse.",null,null,"single phase"]
[17,112,"2021-03-14","12:24:00",-37.691029977275399,145.19381499788702,"270 Donaldson Rd, Kangaroo Ground VIC 3097, Australia",919388,"ELM26","22kV AC","RURAL SHORT"," - fuse (boric acid)","single phase","Otherwise started by a distribution system","within area delineated on plan LEGL./16-354",4.5999999999999996,"LOW-MODERATE",0.2,0.91999999999999993,"E0073218","20210316SPN_02","Crew found a candled fuse at pole 919388.\n ",null,null,"two phase"]
[17,113,"2021-03-14","15:43:00",-37.771525990361098,148.05345597233702,"6 Cottage Ln, Toorloo Arm VIC 3909, Australia",1903217,"NLA34","Low voltage AC (<1kV)","RURAL SHORT"," - connection box","single phase","Otherwise started by a distribution system","HBRA only",1,"LOW-MODERATE",0.2,0.2,"E0073240","20210316SPN_03","The crew inserted an LV fuse into a FOLCB on the pole and it caught fire causing a 2 meter square ground fire. The crew identified that the customers U/G mains were faulty and issued a defect notice and removed them off supply.",null,null,"three phase"]
[17,114,"2021-03-17","18:00:00",-38.220164011197298,146.470932014384,"Tandara Caravan Park, 9 Village Ave, Traralgon VIC 3844, Australia",2606738,"MWL14","22kV AC","RURAL SHORT"," - overhead conductor (bare; all aluminium conductor)","three phase","Started by any tree, or part of a tree, falling upon or coming into contact with a distribution system","HBRA only",1,"LOW-MODERATE",0.2,0.2,"E0075637","20210401SPN_04","A tree fell oh open wire 22kv lines and caused burning of the tree. No ground fire."]
[17,115,"2021-03-18","01:06:00",-37.9297250218806,146.906138000292,"150 Lower Newry Rd, Newry VIC 3859, Australia",2509957,"MFA22","Low voltage AC (<1kV)","RURAL LONG"," - connection box","three phase","Otherwise started by a distribution system","LBRA only",0.2,"LOW-MODERATE",0.2,4.0000000000000008E-2,"E0075646","20210401SPN_03","A FOLCB on the pole caught fire."]
[17,116,"2021-03-22","08:22:00",-38.055985003727301,145.486477030266,"155 Ahern Rd, Pakenham VIC 3810, Australia",523554,"PHM34","22kV AC","URBAN"," - fuse (boric acid)","single phase","Otherwise started by a distribution system","HBRA only",1,"LOW-MODERATE",0.2,0.2,"E0074374","20210322SPN_01","Crew attended site and found a candled 22KV BA fuse.",null,null,"Negligible: no ground fire"]
[17,117,"2021-03-24","11:50:00",-37.774841025100493,145.50721499671801,"Warburton Hwy, Seville East VIC 3139, Australia",1014454,"WYK12","22kV AC","RURAL SHORT"," - fuse (boric acid)","three phase","Otherwise started by a distribution system","within area delineated on plan LEGL./16-354",4.5999999999999996,"LOW-MODERATE",0.2,0.91999999999999993,"E0074690","20210324SPN_03","Suspected candled fuse. ",null,null,"Localised: less than 10 sq.m"]
[17,118,"2021-03-27","21:51:00",-37.545154983100893,148.13563498978701,"480 Buchan S Rd, Buchan South VIC 3885, Australia",1903948,"BDL41","22kV AC","RURAL LONG"," - transformer (pole mounted)","single phase","Otherwise started by a distribution system","within area delineated on plan LEGL./16-354",4.5999999999999996,"LOW-MODERATE",0.2,0.91999999999999993,"E0074948","20210330SPN_03","A 15kva pole mount transformer caught fire. no ground fire",null,null,"Small: 10 - 1000 aq.m"]
[17,119,"2021-03-29","14:40:00",-38.015275016288697,146.826007989012,"1908 Sale-Heyfield Rd, Denison VIC 3858, Australia",2509986,"MFA34","22kV AC","RURAL SHORT"," - fuse (EDO fuse)","single phase","Otherwise started by a distribution system","LBRA only",0.2,"LOW-MODERATE",0.2,4.0000000000000008E-2,"E0075025","20210330SPN_01","Crew found candled EDO fuse. No ground fire.",null,null,"Medium: 1000 sq.m - 10 ha"]
[17,120,"2021-03-30","19:11:00",-38.134455007523492,146.25858199918301,"65 Moe-Willow Grove Rd, Tanjil South VIC 3825, Australia",2200993,"MOE13","22kV AC","RURAL SHORT"," - fuse (boric acid)","single phase","Otherwise started by a distribution system","within area delineated on plan LEGL./16-354",4.5999999999999996,"LOW-MODERATE",0.2,0.91999999999999993,"E0075317","20210331SPN_01","Candled fuse. No ground fire.",null,null,"Large: more than 10 ha"]
[17,121,"2021-04-01","15:49:00",-38.668857020230796,145.64004901541202,"700 Cape Paterson-Inverloch Rd, Cape Paterson VIC 3995, Australia",2811354,"WGI22","22kV AC","RURAL SHORT"," - fuse (boric acid)","single phase","Otherwise started by a distribution system","within area delineated on plan LEGL./16-354",4.5999999999999996,"LOW-MODERATE",0.2,0.91999999999999993,"E0075703","20210401SPN_05","Candled BA fuse at Lis 2811354."]
[17,122,"2021-04-03","06:39:00",-38.357267999750697,146.31771499819502,"2215 Monash Way, Yinnar South VIC 3869, Australia",2618540,"MWL11","22kV AC","RURAL LONG"," - fuse (EDO fuse)","single phase","Otherwise started by a distribution system","HBRA only",1,"HIGH",0.5,0.5,"E0075712","20210406SPN_01","candled fuse at Lis 2618540. No cause found and no other damge or fires detected"]
[17,123,"2021-04-10","20:56:00",-38.640921850436698,145.68748081323199,"80 Drowleys Rd, Inverloch VIC 3996, Australia",2808888,"WGI31","12.7kV AC (SWER)","RURAL SHORT"," - fuse (EDO fuse)","single wire earth return (SWER)","Otherwise started by a distribution system","within area delineated on plan LEGL./16-354",4.5999999999999996,"HIGH",0.5,2.2999999999999998,"E0075947","20210412SPN_01","fuse candled. no ground fire.",null,null,"Started in or originated from a distribution system"]
[17,124,"2021-04-12","14:25:00",-37.781092989059204,147.40871798066001,"115 Alexanders Rd, Walpa VIC 3875, Australia",1606480,"BDL44","22kV AC","RURAL LONG"," - fuse (boric acid)","three phase","Otherwise started by a distribution system","LBRA only",0.2,"LOW-MODERATE",0.2,4.0000000000000008E-2,"E0075977","20210412SPN_02","HV fuse candled",null,null,"Started by any tree, or part of a tree, falling upon or coming into contact with a distribution system"]
[17,125,"2021-04-12","15:43:00",-38.211504999479295,145.880460974443,"1351 Lardners Track, Lardner VIC 3821, Australia",2705179,"WGL23","22kV AC","RURAL SHORT"," - fuse (boric acid)","three phase","Otherwise started by a distribution system","HBRA only",1,"LOW-MODERATE",0.2,0.2,"E0075990","20210412SPN_03","2 fuses have candled and 1 has blown. ",null,null,"Started by any person, bird, reptile or other animal coming into contact with a distribution system"]
[17,126,"2021-04-12","15:56:00",-37.798198686176598,145.23310079715702,"11 Rosebank Ave, Ringwood North VIC 3134, Australia",5752632,"RWN32","22kV AC","URBAN"," - fuse (boric acid)","three phase","Otherwise started by a distribution system","LBRA only",0.2,"LOW-MODERATE",0.2,4.0000000000000008E-2,"E0075993","20210412SPN_04","Candled fuse",null,null,"Started by lightning striking a distribution system or a part of a distribution system "]
[17,127,"2021-04-20","06:43:00",-38.554345018200095,145.65445301997801,"2345 Korumburra-Wonthaggi Rd, Lance Creek VIC 3995, Australia",2804591,"WGI34","22kV AC","RURAL LONG"," - fuse (boric acid)","single phase","Otherwise started by a distribution system","within area delineated on plan LEGL./16-354",4.5999999999999996,"LOW-MODERATE",0.2,0.91999999999999993,"E0076574","20210422SPN_01","Crew found candled fuse that failed to eject.",null,null,"Started by any other thing forming part of or coming into contact with a distribution system"]
[17,128,"2021-04-21","14:40:00",-38.615731674127098,146.25811851496601,"110 Wonga Square Top Rd, Wonga VIC 3960, Australia",2025183,"FTR21","12.7kV AC (SWER)","RURAL LONG"," - fuse (boric acid)","single wire earth return (SWER)","Otherwise started by a distribution system","HBRA only",1,"LOW-MODERATE",0.2,0.2,"E0076614","20210422SPN_02","Crew found candled fuse.",null,null,"Otherwise started by a distribution system"]
[17,129,"2021-04-23","21:36:00",-38.1024329956306,145.28642001460702,"14 Marklin St, Cranbourne VIC 3977, Australia",505706,"CRE32","22kV AC","URBAN"," - overhead conductor (bare; aluminium core steel reinforced)","three phase","Started by any other thing forming part of or coming into contact with a distribution system","LBRA only",0.2,"LOW-MODERATE",0.2,4.0000000000000008E-2,"E0076675","20210426SPN_02","A car hit the pole causing a 22kv white phase bare open wire to drop and hit the ground causing a burn mark on the ground and operating the protection. car fled the scene. "]
[17,130,"2021-04-24","16:43:00",-38.383165603449598,146.02250169475701,"Unnamed Road, Wooreen VIC 3953, Australia",2000064,"LGA11","Low voltage AC (<1kV)","RURAL LONG"," - connection box","single phase","Otherwise started by a distribution system","HBRA only",1,"LOW-MODERATE",0.2,0.2,"E0076676","20210426SPN_03","A FOLCB on the pole caught fire burning the timber cross arm. No ground fire"]
[17,131,"2021-04-26","12:00:00",-36.937044018387802,147.61224101982,"1303 Omeo Valley Rd, Omeo Valley VIC 3898, Australia",1605920,"BDL42","22kV AC","RURAL LONG"," - fuse (EDO fuse)","single phase","Otherwise started by a distribution system","within area delineated on plan LEGL./16-354",4.5999999999999996,"LOW-MODERATE",0.2,0.91999999999999993,"E0076693","20210427SPN_01","Crew found candled fuse that was broken in half. No ground fire.",null,null,1]
[17,132,"2021-04-28","21:59:00",-37.7852779866692,145.29295198258902,"167 State Route 5, Croydon VIC 3136, Australia",1211956,"CPK21","22kV AC","URBAN"," - fuse (boric acid)","three phase","Otherwise started by a distribution system","LBRA only",0.2,"LOW-MODERATE",0.2,4.0000000000000008E-2,"E0076756","20210430SPN_01","The Crew attended site and found that the 22KV BA fuses on the red and white phase had blown and the blue phase fuse was candled.",null,null,2]
[17,133,"2021-04-30","13:41:00",-36.724062313867002,146.30071259525499,"1379 Benalla-Whitfield Rd, Myrrhee VIC 3732, Australia",5103878,"WN6","22kV AC","RURAL LONG"," - overhead conductor (bare; steel)","three phase","Otherwise started by a distribution system","within area delineated on plan LEGL./16-354",4.5999999999999996,"LOW-MODERATE",0.2,0.91999999999999993,"E0076803","20210625SPN_01","A candled fuse. Candled fuse and lines clashing was caused by the Euc tree being felled., An 80M squared ground fire was caused by the Landowner Neville Hancock whom was burning blackberries that he had poisoned, when he noticed a euc tree had been burnt out at the base of the tree. Neville has then fell the euc tree which rolled out off another tree coming into contact with the conductors. Neville said that he saw sparks coming off the conductors. Neville was very cooperative and was very remorseful with his actions. Name Neville Hancock 05 7295563.",null,null,3]
[17,134,"2021-05-02","22:53:00",-38.017296013818303,145.96047201338098,"46 Neerim E Rd, Neerim South VIC 3831, Australia",2700138,"WGL24","22kV AC","RURAL LONG"," - fuse (boric acid)","three phase","Otherwise started by a distribution system","HBRA only",1,"NO FORECAST",0.1,{"$f":"IF(OR(P171=\"\",R171=\"\"),\"\",IF(AND(O171=\"within electric line construction area\",Q171=\"No forecast\"),1,P171*R171))","v":0.1},"E0076839","20210625SPN_02","Crew found a candled BA fuse at pole 2700138. 1 other fuse blew. no cause found.",null,null,4]
[17,135,"2021-05-10","06:16:00",-38.359791024378502,145.91490697694601,"224 Ross and Witherdons Rd, Strzelecki VIC 3950, Australia",2004915,"LGA24","22kV AC","RURAL SHORT"," - fuse (boric acid)","single phase","Otherwise started by a distribution system","HBRA only",1,"NO FORECAST",0.1,0.1,"E0077040","20210625SPN_03","Candled fuse.",null,null,5]
[17,136,"2021-05-10","09:04:00",-37.731701018348005,148.42155498133201,"13-25 PRESTONS ROAD, NEWMERELLA VIC 3886",1911295,"NLA32","Low voltage AC (<1kV)","RURAL SHORT"," - connection box","three phase","Started by any person, bird, reptile or other animal coming into contact with a distribution system","HBRA only",1,"NO FORECAST",0.1,0.1,"E0077041","20210604SPN_02","Customer digging with an excavator hit an underground conduit causing the FOLCB on the pole to catch fire, melting the seal on the side of the transformer on the pole causing an oil leak.",null,null,6]
[17,137,"2021-05-13","02:00:00",-38.545204967781899,145.45913187952002,"1 Warren Parade, Kilcunda VIC 3995, Australia",2801240,"WGI23","Low voltage AC (<1kV)","RURAL SHORT"," - connection box","three phase","Otherwise started by a distribution system","within area delineated on plan LEGL./16-354",4.5999999999999996,"NO FORECAST",0.1,0.45999999999999996,"E0077192","20210514SPN_01","FOLCB on the pole caught fire. evidence of fire on the pole and  the fire was out when the crew arrived. No ground fire",null,null,7]
[17,138,"2021-05-15","05:03:00",-37.909436009097199,145.32617300619199,"77 Forest Park Rd, Upwey VIC 3158, Australia",1302401,"FGY13","22kV AC","RURAL SHORT"," - overhead conductor (bare; copper)","three phase","Started by any tree, or part of a tree, falling upon or coming into contact with a distribution system","LBRA only",0.2,"NO FORECAST",0.1,2.0000000000000004E-2,"E0077407","20210517SPN_01","A private tree branch contacted the HV O/H bare conductors and was reported as catching fire.",null,null,8]
[17,139,"2021-05-18","07:30:00",-37.067688111168195,146.284385176451,"76 Greenways Ln, Merrijig VIC 3723, Australia",597263,"MSD1","12.7kV AC (SWER)","RURAL LONG"," - fuse (EDO fuse)","single wire earth return (SWER)","Otherwise started by a distribution system","HBRA only",1,"NO FORECAST",0.1,0.1,"E0077435","20210524SPN_02","Crew found a candled EDO fuse.",null,null,9]
[17,140,"2021-05-19","15:16:00",-38.3161610065128,146.45752201760101,"290 Thomson Rd, Hazelwood South VIC 3840, Australia",2614813,"MWL24","22kV AC","RURAL SHORT"," - fuse (boric acid)","single phase","Otherwise started by a distribution system","HBRA only",1,"NO FORECAST",0.1,0.1,"E0077493","20210520SPN_01","Crew found a candled fuse.",null,null,10]
[17,141,"2021-05-25","09:12:00",-38.124631008929299,145.875880003699,"47 Houston Rd, Drouin VIC 3818, Australia",2718198,"WGL21","22kV AC","RURAL SHORT"," - fuse (boric acid)","three phase","Otherwise started by a distribution system","HBRA only",1,"NO FORECAST",0.1,0.1,"E0077555","20210525SPN_01","Tree fell over HV lines at LIS# 2718198\n\n1 x Candled fuse and 2 x Blown 25E BA fuses at SW# WL242.\n\nNo sign of burning or fire.\n\nLine Isolated for repairs\n",null,null,{"$f":"Y177+1","v":11}]
[17,142,"2021-05-25","21:00:00",-37.937505988834303,145.44038799373001,"33 Kilvington Dr, Emerald VIC 3782, Australia",419441,"BGE23","22kV AC","RURAL SHORT"," - fuse (boric acid)","three phase","Otherwise started by a distribution system","within area delineated on plan LEGL./16-354",4.5999999999999996,"NO FORECAST",0.1,0.45999999999999996,"E0077574","20210527SPN_01","Crew found a candled fuse",null,null,{"$f":"Y178+1","v":12}]
[17,143,"2021-05-26","17:35:00",-38.166085012340396,146.78547702348101,"124 Willung Rd, Rosedale VIC 3847, Australia",2627027,"TGN41","22kV AC","RURAL LONG"," - fuse (boric acid)","three phase","Otherwise started by a distribution system","HBRA only",1,"NO FORECAST",0.1,0.1,"E0077595","20210527SPN_02","Crwe attended site and found a BA fuse had candled.",null,null,13]
[17,144,"2021-05-28","04:22:00",-38.162560985247502,145.31916398657501,"17 Fisheries Rd, Devon Meadows VIC 3977, Australia",520704,"CLN13","22kV AC","RURAL SHORT"," - fuse (boric acid)","three phase","Otherwise started by a distribution system","HBRA only",1,"NO FORECAST",0.1,0.1,"E0077625","20210528SPN_01","Crew attended site and found 1 BA fuse had candled and 1 BA fuse was hung up.",null,null,14]
[17,145,"2021-06-03","04:26:00",-37.955576016377201,145.350624027262,"1160 C413, Belgrave South VIC 3160, Australia",417951,"BGE23","22kV AC","RURAL SHORT"," - transformer (pole mounted)","three phase","Started by any person, bird, reptile or other animal coming into contact with a distribution system","within area delineated on plan LEGL./16-354",4.5999999999999996,"NO FORECAST",0.1,0.45999999999999996,"E0077861","20210603SPN_02","AT LIS 417951, THERE WAS A TRANSFORMER FIRE AND HUNGUP FUSE, A POSSUM WAS FOUND AT THE POLE. A 1MSQ GROUND FIRE AND OIL SPILL CREATED AT BASE OF POLE.\n",null,null,15]
[17,146,"2021-06-04","17:39:00",-36.852081987640901,147.08415997630502,"60 Stony Creek Rd, Harrietville VIC 3741, Australia",4506724,"BRT21","22kV AC","RURAL SHORT"," - fuse (EDO fuse)","three phase","Otherwise started by a distribution system","HBRA only",1,"NO FORECAST",0.1,0.1,"E0078053","20210607SPN_01","Crew found a candled 6k EDO fuse on the blue phase 22kv line.",null,null,16]
[17,147,"2021-06-10","00:25:00",-38.033977025263006,146.800652001565,"80 Malvern Park Rd, Denison VIC 3858, Australia",2508830,"MFA34","22kV AC","RURAL SHORT"," - overhead conductor (bare; steel)","three phase","Started by any tree, or part of a tree, falling upon or coming into contact with a distribution system","LBRA only",0.2,"NO FORECAST",0.1,2.0000000000000004E-2,"E0078188","20210610SPN_01","AT LIS 2508830, TREE BRANCH ON HV CAUGHT FIRE. FIRE WAS OUT PRIOR TO CREWS ARRIVING,. NO GROUND FIRE.  TREE BROUGHT DOWN HV @ LIS 2508830 ON TO CAR, NO INJURIES",null,null,17]
[17,148,"2021-06-10","06:08:00",-38.154047270931102,146.52139095457099,"13 Bradys Ln, Glengarry West VIC 3854, Australia",2607824,"TGN31","22kV AC","RURAL LONG"," - overhead conductor (bare; steel)","three phase","Started by any tree, or part of a tree, falling upon or coming into contact with a distribution system","HBRA only",1,"NO FORECAST",0.1,0.1,"E0078236","20210611SPN_01","HV BROUGHT DOWN BY TREE AND BURNING AT LIS 2607824. HV WAS ALIVE ON ARRIVAL. FIRE NOW EXTINGUISED APPROX 2x1M GROUND FIRE. \n",null,null,18]
[17,149,"2021-06-14","16:36:00",-38.154047270931102,146.52139095457099,"13 Bradys Ln, Glengarry West VIC 3854, Australia",2607824,"TGN31","22kV AC","RURAL LONG"," - overhead conductor (bare; steel)","single phase","Otherwise started by a distribution system","HBRA only",1,"NO FORECAST",0.1,0.1,"E0078271","20210615SPN_02","Crew found conductor on the ground between lis 2607824 and lis 2607823 due to  a tree branch. construction crew needed to repair conductor. Candled HV fuse at LIS 2607824. No ground fire.",null,null,19]
[17,150,"2021-06-15","10:42:00",-37.257235017804199,145.32344201659902,"500 Yea Spur Rd, Yea VIC 3717, Australia",4716182,"SMR14","22kV AC","RURAL LONG"," - fuse (boric acid)","single phase","Otherwise started by a distribution system","within area delineated on plan LEGL./16-354",4.5999999999999996,"NO FORECAST",0.1,0.45999999999999996,"E0078281","20210615SPN_04","Crew found a candled fuse caused by a possum. ",null,null,20]
[17,151,"2021-06-16","05:03:00",-37.542723998077498,145.10472902404001,"Unnamed Road, Yan Yean VIC 3755, Australia",919026,"DRN22","22kV AC","RURAL SHORT"," - fuse (boric acid)","three phase","Otherwise started by a distribution system","HBRA only",1,"NO FORECAST",0.1,0.1,"E0078301","20210616SPN_01","Crew found a candled fuse that failed to eject"]
[17,152,"2021-06-16","21:15:00",-37.928125997437704,145.34786500471,"53 Lockwood Rd, Belgrave Heights VIC 3160, Australia",1306507,"BGE12","22kV AC","RURAL SHORT"," - fuse (powder filled)","three phase","Otherwise started by a distribution system","within area delineated on plan LEGL./16-354",4.5999999999999996,"NO FORECAST",0.1,0.45999999999999996,"E0078311","20210618SPN_02","Crew found a candled powder filled fuse."]
[17,153,"2021-06-18","00:44:00",-38.114523985996101,145.29501606532503,"39 Bathgate Cres, Cranbourne East VIC 3977, Australia",5605093,"CLN13","Low voltage AC (<1kV)","RURAL SHORT"," - luminaires (major road)","single phase","Otherwise started by a distribution system","LBRA only",0.2,"NO FORECAST",0.1,2.0000000000000004E-2,"E0078326","20210618SPN_03","Emergency services called to report Streel light pole 5605093 on fire\n"]
[17,154,"2021-06-21","22:00:00",-37.8747619955315,145.243807992239,"120 Tyner Rd, Wantirna South VIC 3152, Australia",1221265,"BRA23","22kV AC","URBAN"," - transformer (kiosk mounted)","three phase","Started by any other thing forming part of or coming into contact with a distribution system","LBRA only",0.2,"NO FORECAST",{"$f":"IF(Q191=\"\",\"\",IF(Q191=\"No forecast\",0.1,IF(Q191=\"Low-moderate\",0.2,IF(Q191=\"High\",0.5,IF(Q191=\"Very high\",1,IF(Q191=\"Severe\",2,IF(Q191=\"Extreme\",3.5,5)))))))","v":0.1},{"$f":"IF(OR(P191=\"\",R191=\"\"),\"\",IF(AND(O191=\"within electric line construction area\",Q191=\"No forecast\"),1,P191*R191))","v":2.0000000000000004E-2},"E0078381","20210622SPN_02","Car into pole at Lis 1221265 causing TX lid to blow off and oil spilled to ground. Also TX and Gas Switch on fire. Immediately de-energised fdr for safety. \n"]
[17,155,"2021-06-21","23:07:00",-38.413238425988197,145.937482006717,"1151-1153 Fairbank Rd, Fairbank VIC 3951, Australia",5739024,"LGA22","22kV AC","RURAL SHORT"," - fuse (any other type)","three phase","Otherwise started by a distribution system","HBRA only",1,"NO FORECAST",0.1,0.1,"E0078382","20210622SPN_03","Crew attended and found a candled fuse, There was bark in the middle of the span on the lines which was not on fire or burnt."]
[17,156,"2021-06-26","18:26:00",-38.252445491591601,146.150075938041,"229 Trafalgar S Rd, Trafalgar South VIC 3824, Australia",2207643,"MOE12","12.7kV AC (SWER)","RURAL SHORT"," - pole (wood)","single wire earth return (SWER)","Otherwise started by a distribution system","within area delineated on plan LEGL./16-354",4.5999999999999996,"NO FORECAST",0.1,0.45999999999999996,"E0078502","20210628SPN_01","ACR TN18292 tripped off. pole lis 2207643 found burnt in half with part of it on fire. crew extinguished fire and made sure the area was safe\n"]
[17,157,"2021-06-29","09:59:00",-37.476597020613497,149.58976200422001,"5 Bass Ct, Genoa VIC 3891, Australia",1909412,"CNR2","22kV AC","RURAL SHORT"," - fuse (EDO fuse)","three phase","Otherwise started by a distribution system","HBRA only",1,"NO FORECAST",0.1,0.1,"E0078529","20210630SPN_01","Crew found a candled fuse."]

{"sheet":"3. Systems and Audit","index":4,"n_rows":29,"n_cols":5,"rows_kept":29,"cut":false,"hidden":false,"merged":[[28,1,29,4],[3,5,3,6],[4,5,4,6],[5,5,5,6],[6,1,6,4],[9,1,9,4],[14,1,14,4],[10,1,10,4],[13,1,13,4],[12,1,12,4],[11,1,11,4],[19,4,21,4]]}
[null,{"$f":"IF(Cover!D27=\"\",\"[DNSP Name]\", Cover!D27)","v":"AusNet Services"}]
[null,"F-factor data reporting"]
[null,{"$f":"IF(Cover!D33=\"\",\"[Year]\",Cover!D33)","v":"2020/21"}]
[]
[]
[null,"Instructions:"]
[]
[null,{"$f":"IF(Cover!D27=\"\",\"[DNSP Name] must provide:\", CONCATENATE(Cover!D27,\" must provide:\"))","v":"AusNet Services must provide:"}]
[]
[null,"Table 4 - Information or reporting systems"]
[null,"   (1) Name of any IT system used to collect fire start data or fault event data - i.e. SCADA system, or fault reporting system"]
[null,"   (2) Whether the fire recording or fault recording process has been audited or complies with a relevant Australian or industry standard - Yes or No"]
[null,"   (3) List any relevant Australian or industry standards that the fire recording or fault recording process complies with"]
[null,"   (4) Whether the data entered into or removed from the IT system has been audited - Yes or No"]
[]
[]
[null,"Table 4: Information or reporting systems"]
[]
[null,"Information or reporting systems","Name","System Audited","Relevant Standards"]
[null,"System 1","Poweron (OMS)","Yes","ISO 9001\nISO55000\nElectricity Safey (Bushfire Mitigation) Regulations\nElectricity Safety (Management) Regulations"]
[null,"System 2","ENABLON","Yes"]
[null,"System 3 ","Smallworld GIS (SDME) /SAP","Yes"]
[null,"System 4","EM-COP","Unknown","https://scc.em.vic.gov.au/cgi-bin/scc/fdrhistory/home"]
[null,"System 5"]
[null,"System 6"]
[null,"System 7"]
[null,"System 8"]
[]
[null,"The SGSPAA Internal Audit function undertakes a programme of work in accordance with the SGSPAA Group Internal Audit Plan. This internal audit activity covers elements of the systems and process used for capturing, recording and maintaining fire start data."]